Cogmind - Beta 16.1 @@@ ROGUE MODE // 2026.03.22 @ 22:09:15 Player: cptwinky Result: Escaped! Performance ------------- Evolutions (9) 4500 Regions Visited (30) 6000 Robots Destroyed (675) 3375 Value Destroyed (26153) 26153 Prototype IDs (77) 1540 Alien Tech Used (0) 0 Bonus (24403) 24403 TOTAL SCORE: 65971 Bonus ------- Triggered High Security 1500 High Alert Combat Kills 12726 Follower Combat Kills 4599 Hunted by Unchained 1000 Entered Garrisons 200 Used RIF Installer 500 Entered DSFs 500 Network Hubs Disabled 200 Aligned with FarCom 300 Met Data Miner 300 Built Enhanced Grunts 300 Met R17 at Cetus 500 Win 3000 Friendly Fire -1222 Cogmind --------- Core Integrity 1260/1600 Matter 300/300 Energy 8/100 System Corruption 9% Temperature Cool (9) Movement Flying (39) Location To Epsilon Eridani Parts ------- > --- POWER (3) -------- (None) > --- PROPULSION (8) --- Impulse Thruster Array Impulse Thruster Array Impulse Thruster Array > --- UTILITY (12) ----- Advanced Melee Analysis Suite Core Analyzer Hacking Suite Hacking Suite Improved Hacking Suite Improved Hacking Suite > --- WEAPON (2) ------- Ionic Axe Ionic Axe > --- INVENTORY (5) ---- Matter Compressor (250) Enhanced Force Lance Peak State ------------ > --- POWER ------------ Micro Antimatter Reactor Micro Antimatter Reactor Light Quantum Reactor > --- PROPULSION ------- Cooled Field Propulsion Drive Q-thruster Impulse Thruster Array Impulse Thruster Array Impulse Thruster Array > --- UTILITY ---------- Advanced Heat Sink Advanced Melee Analysis Suite Core Analyzer Layered Heavy Armor Plating Hacking Suite Hacking Suite Hacking Suite Hacking Suite Improved Hacking Suite Improved Hacking Suite Improved System Shield > --- WEAPON ----------- Ionic Axe Ionic Axe > --- INVENTORY -------- Impulse Thruster Array Matter Compressor Backup Plating VII Enhanced Force Lance [Rating: 159] Favorites ----------- Power Angular Momentum Engine Engine Angular Momentum Engine Power Core Fission Core Reactor Quantum Reactor Propulsion Light Treads Treads Light Treads Leg Flexi-carbon Leg Wheel Compact Wheel Hover Unit Antigrav System Flight Unit Impulse Thruster Array Utility Huge Storage Unit Device Weapon Mount Storage Huge Storage Unit Processor Core Analyzer Hackware Improved Hacking Suite Protection Centrium Medium Armor Plating Weapon Improved Assault Rifle Energy Gun Small Laser Energy Cannon Heavy Ion Cannon Ballistic Gun Improved Assault Rifle Ballistic Cannon Bore Cannon Launcher Rocket Launcher Special Weapon Improved Remote Datajack Impact Weapon Maul Slashing Weapon Longsword +1 Piercing Weapon Enhanced Force Lance Special Melee Weapon Improved Datajack Build | -11 -10 -10 -9 -9 -9 -8 -8 -8 -8 -7 -7 -7 -6 -6 -6 -6 -6 -6 -6 -6 -5 -5 -5 -5 -5 -4 -3 -3 -2 -1 ------- Run | Yrd Mat Min Mat Min Exi Min Mat Gar Mat Fac Low Dat Pro Fac Was Fac Ext Cet Arc Hub Fac Was Fac Upp Upp Fac Res DSF Res Acc Slots Evolved 18 | . . . 2 . . . 2 . . 2 . . . 2 . . . . . . 2 . . . . 2 2 . 2 2 Power 2 | . . . . . . . . . . . . . . 1 . . . . . . . . . . . . . . . 1 Propulsion 6 | . . . 1 . . . . . . 1 . . . . . . . . . . . . . . . 2 1 . 1 . Utility 10 | . . . 1 . . . 2 . . 1 . . . 1 . . . . . . 2 . . . . . 1 . 1 1 Weapon . | . . . . . . . . . . . . . . . . . . . . . . . . . . . . . . . Parts Attached 326 | 6 11 2 33 2 2 . 16 7 27 32 6 . 3 29 3 19 15 11 2 9 1 3 17 4 . 37 2 8 3 16 Power 40 | 1 1 . 3 . . . . . 3 3 1 . 1 6 . 5 1 2 1 2 . . . 1 . 5 1 . . 3 Engine 23 | 1 1 . 3 . . . . . 3 2 1 . . 4 . 5 1 . . . . . . . . 1 . . . 1 Core 9 | . . . . . . . . . . 1 . . 1 2 . . . 2 . . . . . 1 . 2 . . . . Reactor 8 | . . . . . . . . . . . . . . . . . . . 1 2 . . . . . 2 1 . . 2 Propulsion 95 | 2 1 . 11 . 1 . 5 3 8 11 3 . . 11 2 2 9 3 . 4 . . 1 1 . 11 . 3 1 2 Treads 73 | 2 1 . 11 . 1 . 5 3 6 10 3 . . 6 2 2 9 3 . 4 . . 1 . . 4 . . . . Leg 3 | . . . . . . . . . . 1 . . . . . . . . . . . . . . . 2 . . . . Wheel 7 | . . . . . . . . . 2 . . . . 5 . . . . . . . . . . . . . . . . Hover 3 | . . . . . . . . . . . . . . . . . . . . . . . . . . 3 . . . . Flight 9 | . . . . . . . . . . . . . . . . . . . . . . . . 1 . 2 . 3 1 2 Utility 125 | 1 4 1 12 1 . . 6 2 10 12 1 . 2 8 . 8 3 2 1 . 1 3 12 1 . 19 1 5 . 9 Device 45 | . 1 . 4 . . . 3 1 2 2 1 . 2 5 . 4 . . . . . 3 8 . . 6 1 . . 2 Storage 9 | 1 2 1 2 . . . . . 1 1 . . . 1 . . . . . . . . . . . . . . . . Processor 17 | . 1 . 1 . . . . . 2 2 . . . 1 . 2 1 . . . . . 1 . . 4 . . . 2 Hackware 18 | . . . . . . . 1 . 1 2 . . . . . 1 . . . . 1 . . 1 . 4 . 5 . 2 Protection 36 | . . . 5 1 . . 2 1 4 5 . . . 1 . 1 2 2 1 . . . 3 . . 5 . . . 3 Artifact . | . . . . . . . . . . . . . . . . . . . . . . . . . . . . . . . Weapon 66 | 2 5 1 7 1 1 . 5 2 6 6 1 . . 4 1 4 2 4 . 3 . . 4 1 . 2 . . 2 2 Energy Gun 3 | . 1 . . . . . . 1 . 1 . . . . . . . . . . . . . . . . . . . . Energy Cannon 11 | . . 1 . . . . . . . 2 . . . 3 1 1 . . . 1 . . 1 . . 1 . . . . Ballistic Gun 24 | 2 2 . 2 . 1 . 4 1 4 3 . . . . . . 1 1 . 2 . . . 1 . . . . . . Ballistic Cannon 9 | . 1 . . . . . . . . . 1 . . . . 2 1 2 . . . . 2 . . . . . . . Launcher 8 | . . . 3 1 . . . . 1 . . . . 1 . . . 1 . . . . 1 . . . . . . . Special Weapon 2 | . . . . . . . . . . . . . . . . 1 . . . . . . . . . 1 . . . . Impact Weapon 2 | . 1 . 1 . . . . . . . . . . . . . . . . . . . . . . . . . . . Slashing Weapon 3 | . . . . . . . 1 . . . . . . . . . . . . . . . . . . . . . . 2 Piercing Weapon 2 | . . . . . . . . . . . . . . . . . . . . . . . . . . . . . 2 . Special Melee Weapon 2 | . . . 1 . . . . . 1 . . . . . . . . . . . . . . . . . . . . . Unidentified Prototypes 12 | . . . 1 1 . . . . 1 . . . . 2 . . . 2 . 1 . . 1 . . 2 . . . 1 Corrupted Parts 7 | . . . . . . . . . . . . . . . . . . . . 7 . . . . . . . . . . System Corruption 42 | . . . . . . . . . . . . . . . . . . . . 42 . . . . . . . . . . Parts Lost 118 | . . . 3 . . . 3 2 1 15 9 . 3 6 . 12 8 . . . . . 19 . . 27 . 1 . 9 Power 21 | . . . 1 . . . 1 . 1 3 1 . 1 1 . 4 . . . . . . 3 . . 4 . . . 1 Propulsion 36 | . . . . . . . 1 1 . 5 5 . . 5 . 2 3 . . . . . 4 . . 8 . . . 2 Utility 39 | . . . 2 . . . 1 1 . 3 2 . 2 . . 2 1 . . . . . 8 . . 10 . 1 . 6 Weapon 22 | . . . . . . . . . . 4 1 . . . . 4 4 . . . . . 4 . . 5 . . . . Highest Loss Streak 17 | . . . 2 . . . 2 1 1 5 9 . 1 2 . 5 2 . . . . . 14 . . 17 . 1 . 9 To Critical Strikes 3 | . . . . . . . . . . . . . . . . . . . . . . . 3 . . . . . . . Average Backups 20 | 3 8 10 21 24 24 25 24 19 21 23 22 22 24 23 23 21 21 21 21 21 18 21 22 4 5 4 1 2 3 3 Power . | . 1 1 . 1 1 2 1 . . . . . . . 1 1 2 2 2 1 1 1 . . 1 . . . . . Propulsion 2 | 2 2 2 4 5 3 3 3 2 2 . 1 1 1 1 3 2 6 3 3 2 1 2 2 . . . . . 1 . Utility 8 | . 2 4 6 7 7 8 6 8 9 12 8 8 9 9 10 8 6 8 8 8 7 7 8 1 2 2 1 2 2 1 Weapon 7 | . 1 1 9 10 11 11 11 8 7 7 11 12 12 11 8 6 5 6 7 6 7 8 8 1 1 1 . . . 1 Tool/Special . | . . . . . . . . . . . . . . . . . . . . . . . . . . . . . . . Unused Backups 58 | 1 5 . 7 . 1 . . 1 3 3 . . 2 7 3 5 2 6 . . . 1 8 . . . . . . 3 Power 5 | . . . 1 . . . . 1 1 . . . . . . . . 2 . . . . . . . . . . . . Propulsion 13 | 1 2 . 1 . . . . . 1 . . . . 2 1 . 2 2 . . . . 1 . . . . . . . Utility 21 | . . . 2 . 1 . . . . 3 . . . 2 . 3 . 2 . . . 1 5 . . . . . . 2 Weapon 18 | . 3 . 3 . . . . . 1 . . . 2 3 2 2 . . . . . . 1 . . . . . . 1 Tool/Special 1 | . . . . . . . . . . . . . . . . . . . . . . . 1 . . . . . . . Average Slot Usage (%) 91 | . 97 100 99 100 100 100 99 99 92 94 85 84 80 97 93 83 89 99 100 99 82 87 85 21 41 74 19 41 57 77 Engine 8 | . 14 14 11 11 11 11 9 9 8 5 6 7 3 11 13 12 11 3 . . . . . . . 1 . . . 1 Reactor 1 | . . . . . . . . . . . . . . . . . . . 2 6 11 11 10 . . 2 1 4 4 8 Treads 22 | . 28 28 33 33 33 33 26 26 26 29 26 30 30 23 20 13 18 26 26 25 11 11 10 . . 9 . . . . Device 8 | . 3 . 3 . . . 9 17 1 3 9 15 13 19 13 10 11 6 6 6 5 10 18 6 5 8 2 3 . 4 Storage 7 | . 14 14 11 11 11 11 9 9 9 10 8 7 7 6 6 6 6 6 6 6 5 5 4 . . . . . . . Processor 12 | . 8 14 1 . . . . . 16 19 15 15 15 20 20 20 20 20 20 20 17 17 10 5 5 11 . . . 4 Hackware 1 | . . . . . . . 8 . . . . . . . . . . . . . 5 5 2 1 5 11 4 22 26 28 Protection 8 | . . . 16 22 22 22 17 17 11 6 4 . . . 6 5 5 12 13 13 11 11 11 . . 4 . . . 2 Energy Cannon 2 | . . 2 . . . . . . . . 5 . . 9 12 9 3 . . . . . . 1 . . . . . . Ballistic Gun 7 | . 5 . 15 21 17 22 17 14 17 12 . . . . . . 2 . . . . . . . 5 3 . . . . Ballistic Cannon 3 | . 10 14 . . . . . . . . 4 6 6 1 . 2 5 12 13 12 10 10 9 . . . . . . . Peak Build Rating 159 | 6 8 8 20 23 24 23 35 35 36 53 52 43 49 76 77 79 78 73 80 117 121 128 141 30 30 104 39 87 111 159 Average Rating 54 | 5 7 8 18 21 21 22 28 30 31 41 44 42 43 66 72 76 66 65 75 80 116 123 127 19 30 73 32 53 106 142 On Entrance 47 | . 6 8 8 19 22 24 23 30 28 33 50 43 43 49 67 77 51 52 73 80 117 116 125 13 30 30 25 39 87 111 Avg Prop Armor Cover (%) 4 | . . . . . . . . . 5 8 . . . 13 . . . . . . . . 22 . . 2 . 12 . . Naked Turns . | . . . . . . . . . . . . . . . . . . . . . . . . . . . . . . . Heaviest Build 185 | 12 17 29 115 101 103 100 104 104 113 185 185 99 112 145 145 150 127 137 147 150 156 174 176 13 11 66 13 13 24 60 Greatest Support 172 | 40 40 40 60 60 60 60 60 60 60 104 104 96 96 114 140 152 140 89 80 160 160 160 172 16 16 139 20 55 62 72 Greatest Overweight (x) 10 | . . . 1 1 1 1 1 2 10 3 3 1 1 4 1 1 1 1 1 1 . 1 2 4 . 2 . 1 . . Average Overweight (x) . | . . . . 1 1 1 1 1 1 1 1 . . 1 1 . . 1 1 . . . . . . . . . . . Largest Inventory Capacity 25 | 8 10 15 25 25 25 25 25 25 25 25 25 25 25 25 25 25 25 25 25 25 25 25 25 5 5 5 5 5 5 5 Average Capacity 23 | 7 8 12 23 25 25 25 25 25 25 25 25 25 25 25 25 25 25 25 25 25 25 25 24 5 5 5 5 5 5 5 Most Carried 25 | 7 9 15 25 25 25 25 25 25 25 25 25 24 25 25 25 25 25 25 25 25 20 25 25 5 5 5 4 4 5 5 Average Carried 22 | 4 8 10 23 24 24 25 24 24 24 23 22 22 24 24 24 23 21 23 24 24 19 23 24 4 5 4 1 2 4 4 Final Capacity 25 | 8 10 15 25 25 25 25 25 25 25 25 25 25 25 25 25 25 25 25 25 25 25 25 5 5 5 5 5 5 5 5 Final Carried 25 | 7 9 15 25 25 25 25 24 25 25 25 22 22 25 25 25 15 22 25 25 20 20 25 5 5 5 1 2 4 5 2 Class Distribution -------------------- 49% | Scavenger-Mutant 33% | Mutant 7% | Trapper-Mutant Dominant Class ---------------- Mutant | -10/Materials Mutant | -10/Mines Mutant | -9/Materials Scavenger-Mutant | -9/Mines Scavenger-Mutant | -9/Exiles Scavenger-Mutant | -8/Mines Scavenger-Mutant | -8/Materials Trapper-Mutant | -8/Garrison Trapper-Mutant | -8/Materials Mutant | -7/Factory Scavenger-Mutant | -7/Lower Caves Scavenger-Mutant | -7/Data Miner Scavenger-Mutant | -6/Proximity Caves Mutant | -6/Factory Scavenger-Mutant | -6/Waste Scavenger-Mutant | -6/Factory Commander-Mutant | -6/Extension Scavenger-Mutant | -6/Cetus Scavenger-Mutant | -6/Archives Scavenger-Mutant | -6/Hub_04(d) Scavenger-Mutant | -5/Factory Scavenger-Mutant | -5/Waste Scavenger-Mutant | -5/Factory Mutant | -5/Upper Caves Mutant | -5/Upper Caves Scavenger-Mutant | -4/Factory Mutant | -3/Research Hacker-Mutant | -3/DSF Hacker-Sprinter | -2/Research Wizard-Sprinter | -1/Access Resources | -11 -10 -10 -9 -9 -9 -8 -8 -8 -8 -7 -7 -7 -6 -6 -6 -6 -6 -6 -6 -6 -5 -5 -5 -5 -5 -4 -3 -3 -2 -1 ----------- Run | Yrd Mat Min Mat Min Exi Min Mat Gar Mat Fac Low Dat Pro Fac Was Fac Ext Cet Arc Hub Fac Was Fac Upp Upp Fac Res DSF Res Acc Matter Collected 17658 | 284 342 49 1503 298 50 60 689 319 1540 1512 476 . 351 1512 148 1833 1183 363 96 142 240 364 3042 184 . 758 . . . 320 Remotely 1924 | . . . . . . . . . . . . . . . . 327 . . . . . 246 1351 . . . . . . . Salvage Created 24508 | 117 527 100 2013 228 . 15 1222 373 2920 2471 427 . 377 3142 884 2364 461 366 107 114 86 928 3113 157 72 1425 . . . 499 Parts 1145 | 8 39 5 143 18 . 5 62 20 158 146 16 . 10 144 13 101 14 17 10 9 2 7 100 10 5 66 . . . 17 Haulers Intercepted 30 | . 2 . 5 . . . 6 . 6 4 . . . 3 . 1 . . . . 1 . 1 . . . . . . 1 Recyclers Shooed 23 | . 5 . 1 3 . . 1 . 1 5 . . . 5 . 1 . . . . . . . . . 1 . . . . Parts Field Recycled . | . . . . . . . . . . . . . . . . . . . . . . . . . . . . . . . Retrieved Matter . | . . . . . . . . . . . . . . . . . . . . . . . . . . . . . . . Parts Self-Destructed 37 | . . . . . . . . . . . 13 . 14 . . . . . . . . . . 6 4 . . . . . Prevented . | . . . . . . . . . . . . . . . . . . . . . . . . . . . . . . . Parts Restored . | . . . . . . . . . . . . . . . . . . . . . . . . . . . . . . . Kills | -11 -10 -10 -9 -9 -9 -8 -8 -8 -8 -7 -7 -7 -6 -6 -6 -6 -6 -6 -6 -6 -5 -5 -5 -5 -5 -4 -3 -3 -2 -1 ------- Run | Yrd Mat Min Mat Min Exi Min Mat Gar Mat Fac Low Dat Pro Fac Was Fac Ext Cet Arc Hub Fac Was Fac Upp Upp Fac Res DSF Res Acc Combat Hostiles Destroyed 517 | . 15 3 53 12 . 3 21 6 50 40 15 . 17 54 . 68 10 4 1 2 . 4 109 5 1 20 . . . 4 Melee 28 | . . . . . . . 2 . . 1 1 . . . . 2 1 . . . . . 1 2 1 13 . . . 4 Guns 135 | . 9 . 29 3 . . 15 5 39 26 . . . . . . 1 . . . . . 7 . . 1 . . . . Cannons 129 | . 6 3 3 . . . . . . 1 11 . 16 32 . 21 8 4 1 2 . 4 14 2 . 1 . . . . AOE 221 | . . . 21 9 . 3 4 1 11 12 3 . 1 21 . 45 . . . . . . 86 1 . 3 . . . . Classes Destroyed 24 | 2 6 . 6 1 . . 1 . . 2 . . 2 2 . 1 . . . . . 1 . . . . . . . . Worker 45 | . 1 . 4 2 . . 7 . 6 10 . . . 10 . . 1 . . . . . 4 . . . . . . . Builder 14 | . . . 2 3 . . 2 . 2 2 . . . 1 . . . . . 2 . . . . . . . . . . Tunneler 4 | 3 . . . . . 1 . . . . . . . . . . . . . . . . . . . . . . . . Hauler 30 | . 2 . 5 . . . 6 . 6 4 . . . 3 . 1 . . . . 1 . 1 . . . . . . 1 Recycler 22 | 1 1 . 1 1 . . 1 . 5 6 . . . 4 . . . . . . . . 1 . . 1 . . . . Minesweeper 2 | . . . . . . . . . . . . . 1 . . . . . . . . . . 1 . . . . . . Mechanic 16 | . . . 1 . . . . . 2 3 . . . 1 . 3 . . . . . . 5 . . 1 . . . . Operator 7 | . 1 . . . . . . . 2 . . . . 1 . . . . 1 . . . . . . 1 . . . 1 Drone 2 | . . . . . . . . . . . . . 2 . . . . . . . . . . . . . . . . . Watcher 21 | . 1 . 3 . . . 2 . 3 4 . . . 3 . . . 1 . . . . 1 . . 2 . . . 1 Swarmer 75 | . 8 . 14 . . 3 8 . 3 3 6 . 8 13 . . 1 . . . . . 1 4 . 3 . . . . Saboteur 14 | . . . . . . . . . . . . . . 1 . 6 . . . . . . 6 . . 1 . . . . Grunt 234 | . 7 3 23 3 . . 8 2 33 21 1 . 3 24 . 32 4 . . 2 . . 60 1 1 6 . . . . Brawler 30 | . . . 2 . . . . . 1 2 3 . 2 1 . 8 . . . . . . 10 . . 1 . . . . Duelist 28 | . . . 3 1 . . . . 3 1 3 . 1 1 . 6 . . . . . . 8 . . 1 . . . . Protector 13 | . . . 1 . . . . . 1 . . . . . . 6 . . . . . . 5 . . . . . . . Sentry 39 | . . . 10 . . . 3 1 8 1 2 . 1 4 . . 3 . 1 . . . 1 . . 2 . . . 2 Hunter 32 | . . . . . . . 2 3 1 5 . . . 1 . 3 1 . . . . . 12 . . 4 . . . . Programmer 29 | . . . . . . . . . . 5 . . . 8 . 6 . . . . . . 6 . . 2 . . . 2 Heavy 2 | . . . . . . . . . . 2 . . . . . . . . . . . . . . . . . . . . Behemoth 2 | . . . . . . . . . . . . . . 1 . . 1 . . . . . . . . . . . . . Compactor 4 | . . . . . . . . . . . . . . . . . . . . . . 4 . . . . . . . . Cetus Guard 4 | . . . . . . . . . . . . . . . . . . 4 . . . . . . . . . . . . Enhanced Grunt 1 | . . . . . . . . . . . . . . . . . . 1 . . . . . . . . . . . . Assembled 7 | . . . . 7 . . . . . . . . . . . . . . . . . . . . . . . . . . Surgeon 2 | . . . . . . . . . . . . . . . . 2 . . . . . . . . . . . . . . Martyr 1 | . . . . . . . . . . . . . . . . 1 . . . . . . . . . . . . . . Best Kill Streak 36 | 3 4 3 6 7 . 4 8 3 6 7 4 . 3 9 . 36 2 3 2 3 1 3 19 3 1 5 . . . 2 Combat Bots Only 33 | . 3 3 6 4 . 3 5 3 4 5 4 . 3 5 . 33 1 2 1 2 . 3 18 3 1 4 . . . 1 Max Kills in Single Turn 9 | 1 1 1 6 3 . 2 4 1 6 3 2 . 2 3 . 4 1 1 1 2 1 1 9 1 1 4 . . . 1 Gunslinging 1 | . . . 1 . . . 1 . 1 . . . . . . . . . . . . . . . . . . . . . Exploded 7 | . . . 6 2 . 2 3 1 3 2 2 . 1 3 . 4 . . . . . . 7 1 . 3 . . . . Melee 1 | . . . . . . . 1 . . 1 1 . . . . 1 1 . . . . . 1 1 1 1 . . . 1 Uniques/NPCs Destroyed 2 | . . . . 1 . . . . . . . . . . . . . 1 . . . . . . . . . . . . YI-UF0 (-9/Mines) A7 (-6/Cetus) Combat | -11 -10 -10 -9 -9 -9 -8 -8 -8 -8 -7 -7 -7 -6 -6 -6 -6 -6 -6 -6 -6 -5 -5 -5 -5 -5 -4 -3 -3 -2 -1 -------- Run | Yrd Mat Min Mat Min Exi Min Mat Gar Mat Fac Low Dat Pro Fac Was Fac Ext Cet Arc Hub Fac Was Fac Upp Upp Fac Res DSF Res Acc Hostile Shots Fired 2499 | . 61 7 178 16 . 7 106 39 136 288 100 . 25 239 . 252 124 3 4 3 . . 446 17 7 335 . 1 3 102 Missed 821 | . 11 3 58 2 . 3 32 15 38 93 34 . 13 92 . 78 44 1 . . . . 146 7 5 107 . . . 39 Hits 1678 | . 50 4 120 14 . 4 74 24 98 195 66 . 12 147 . 174 80 2 4 3 . . 300 10 2 228 . 1 3 63 Melee 91 | . . . 2 2 . . . 6 7 6 20 . . . . 1 . . . . . . 22 . . 15 . . . 10 Projectile 1587 | . 50 4 118 12 . 4 74 18 91 189 46 . 12 147 . 173 80 2 4 3 . . 278 10 2 213 . 1 3 53 AOE 10 | . . . . 2 . . . . . . . . . . . 1 4 . . . . . . . . . . . . 3 Critical Strikes 93 | . . . 4 1 . . 2 2 7 9 5 . . 6 . 4 3 1 . . . . 21 . . 15 . . . 13 Part Disruptions 2 | . . . . . . . . . . 1 . . . 1 . . . . . . . . . . . . . . . . Damage Taken 30251 | . 439 42 1506 304 . 31 1055 489 1814 3478 1585 . 260 1886 . 3365 1269 77 97 117 . 22 5435 192 37 4600 . 67 80 2004 Core 3925 | . 86 . 154 34 . . 75 38 158 274 191 . 15 204 . 440 140 . . . . . 488 123 18 1097 . . 50 340 Absorbed by Shields 1508 | . . . . . . . . . . . . . . 442 . . 38 . . . . . 961 . . 67 . . . . Reduced by Siege Mode 148 | . . . . . . . . . . . . . . . . 136 . . . . . . 12 . . . . . . . Redirected to Shielding 181 | . . . . . . . . . . . 105 . . . . . . . . . . . 76 . . . . . . . Ignored by Resistances 235 | . . . . . . . 24 18 32 14 . . . . . 36 . . . . . . 111 . . . . . . . Regen/Repaired (Parts) 2223 | . 97 . 191 . . . 265 . . 310 . . . 293 64 16 . . . . . 140 823 . . 24 . . . . Core Remaining (%) 56 | 100 . 65 . . . 53 . . 50 . . . 31 . . . . . . 7 . . . . 37 4 . 100 96 78 Volleys Fired 1262 | 12 63 8 122 22 . 2 78 21 143 138 30 . 37 197 11 103 53 11 5 12 1 13 136 10 . 34 . . . . Largest 2 | 2 2 2 2 2 . 1 2 2 2 2 2 . 1 2 2 2 2 2 2 2 2 2 2 1 . 2 . . . . Hottest 130 | 40 70 70 90 46 . 33 70 86 86 130 130 . 50 130 130 130 109 96 96 96 96 96 117 90 . 113 . . . . Shots Fired 2099 | 24 107 16 228 32 . 2 152 39 276 252 33 . 37 288 22 173 87 21 10 24 2 26 195 10 . 43 . . . . Gun 1062 | 24 88 8 180 21 . . 148 38 266 223 . . . . . . 20 . . . . . 37 . . 9 . . . . Cannon 853 | . 19 8 26 . . . . . . 13 26 . 37 279 22 144 50 21 10 24 2 26 111 10 . 25 . . . . Launcher 155 | . . . 22 11 . 2 4 1 10 16 7 . . 9 . 26 . . . . . . 47 . . . . . . . Special 29 | . . . . . . . . . . . . . . . . 3 17 . . . . . . . . 9 . . . . Kinetic 1390 | 24 74 8 193 21 . . 148 34 264 204 20 . 37 66 . 30 55 19 10 23 2 26 123 . . 9 . . . . Thermal 500 | . 33 8 13 . . . . 4 2 32 6 . . 213 22 114 15 . . 1 . . 14 10 . 13 . . . . Explosive 155 | . . . 22 11 . 2 4 1 10 16 7 . . 9 . 26 . . . . . . 47 . . . . . . . Electromagnetic 25 | . . . . . . . . . . . . . . . . . . 2 . . . . 11 . . 12 . . . . Robot Hit Streak 67 | 6 6 5 16 8 . . 14 28 29 41 7 . 23 21 13 67 59 8 13 3 1 8 26 11 . 13 . . . . Robot Miss Streak 6 | 3 6 1 4 4 . . 4 1 3 2 1 . 2 3 1 3 1 2 1 2 1 4 6 . . 4 . . . . Penetration Max 1 | . . . . . . . . . . 1 . . 1 1 . . 1 1 . 1 . . 1 . . . . . . . Secondary Targets 17 | . 2 . 5 . . . 2 1 5 2 . . . . . . . . . . . . . . . . . . . . Max Gunslinging Chain 1 | . 1 . 1 . . . 1 1 1 1 . . . . . . . . . . . . . . . . . . . . Shots Hit Robots 1609 | 16 62 10 162 20 4 . 114 36 218 197 23 1 33 180 20 143 97 15 9 9 1 18 101 13 1 71 . . . 35 Core Hits 1654 | 6 29 4 98 28 . 4 66 13 139 133 22 . 14 136 6 308 27 10 4 10 2 6 535 7 1 36 . . . 10 Critical Kills 35 | . . . 1 . . . . . 2 2 . . . 1 . . . 6 2 1 1 4 15 . . . . . . . Critical Parts Destroyed 38 | . . . . . . . 1 . 3 1 . . . . . . 6 3 1 3 . 1 19 . . . . . . . Critical Strikes 119 | . 2 . 1 . . . 4 . 5 4 1 . 5 6 . 2 8 13 4 4 1 10 36 1 . 6 . . . 6 Meltdown 1 | . . . . . . . . . . . . . . 1 . . . . . . . . . . . . . . . . Destroy 84 | . . . 1 . . . 1 . 5 3 . . . . . . 6 13 4 4 1 10 36 . . . . . . . Blast 17 | . 2 . . . . . . . . . 1 . 5 5 . 2 2 . . . . . . . . . . . . . Sever 16 | . . . . . . . 3 . . 1 . . . . . . . . . . . . . 1 . 6 . . . 5 Impale 1 | . . . . . . . . . . . . . . . . . . . . . . . . . . . . . . 1 Melee Attacks 220 | . 2 . 1 . 4 . 7 12 4 10 1 1 1 7 . . 19 3 . . . . 2 4 1 67 . . 2 72 Impact 3 | . 2 . 1 . . . . . . . . . . . . . . . . . . . . . . . . . . . Slashing 162 | . . . . . . . 7 12 1 9 1 . . 6 . . . 3 . . . . 2 4 1 67 . . . 49 Piercing 25 | . . . . . . . . . . . . . . . . . . . . . . . . . . . . . 2 23 Sneak Attacks 38 | . . . . . 4 . 1 . 3 . 1 1 1 1 . . 18 3 . . . . . . 1 1 . . . 3 Combat Hostiles 4 | . . . . . . . 1 . . . . . . . . . . . . . . . . . 1 1 . . . 1 Follow-up Attacks 5 | . . . . . . . . . . . . . . . . . . . . . . . . . . . . . . 5 Damage Inflicted 77334 | 137 704 171 4924 1170 . 285 2727 891 4991 5622 1750 . 1739 9124 543 11856 1750 635 188 430 32 557 20725 583 80 3899 . . . 1821 Guns 12506 | 129 476 59 2124 186 . . 1628 421 3353 2947 . . . . . . 377 . . . . . 694 . . 112 . . . . Cannons 19693 | . 215 112 315 . . . . . . 253 929 . 1739 7100 543 3390 1312 459 188 274 32 557 1373 357 . 545 . . . . Explosions 38981 | . . . 2344 928 . 274 724 98 1495 2179 751 . . 1992 . 8372 . . . 143 . . 18448 74 . 1159 . . . . Melee 5101 | . . . . . . . 292 372 . 97 70 . . . . . . 176 . . . . . 152 80 2041 . . . 1821 Ramming 1053 | 8 13 . 141 56 . 11 83 . 143 146 . . . 32 . 94 61 . . 13 . . 210 . . 42 . . . . Kinetic 21940 | 129 440 112 2300 186 . . 1628 369 3334 2639 796 . 1739 2795 . 758 1205 398 188 274 32 557 1949 . . 112 . . . . Thermal 11068 | . 251 59 139 . . . . 52 19 561 133 . . 4305 543 2632 484 . . . . . 43 431 . 1416 . . . . Explosive 37562 | . . . 2344 928 . 274 724 98 1495 2179 751 . . 1992 . 8372 . . . . . . 18405 . . . . . . . Electromagnetic 610 | . . . . . . . . . . . . . . . . . . 61 . 143 . . 118 . . 288 . . . . Impact . | . . . . . . . . . . . . . . . . . . . . . . . . . . . . . . . Slashing 4471 | . . . . . . . 292 372 . 97 70 . . . . . . 176 . . . . . 152 80 2041 . . . 1191 Piercing 630 | . . . . . . . . . . . . . . . . . . . . . . . . . . . . . . 630 Highest Corruption 47 | . . . . . . . . . . . . . . 4 4 6 1 1 1 47 . . 4 4 4 8 . . . 9 Average Corruption 2 | . . . . . . . . . . . . . . 2 4 3 1 1 1 2 . . 1 4 4 5 . . . 4 Corruption Purged 6 | . . . . . . . . . . . . . . . . 6 . . . . . . . . . . . . . . Corruption Blocked . | . . . . . . . . . . . . . . . . . . . . . . . . . . . . . . . Effects 218 | . . . . . . . . . . . . . . 73 12 64 12 2 1 8 . . 13 8 1 14 . . . 10 Message Errors 47 | . . . . . . . . . . . . . . 16 3 11 2 1 . 2 . . 4 3 . 2 . . . 3 Matter Fused 56 | . . . . . . . . . . . . . . 22 3 16 3 . 1 1 . . 3 1 1 2 . . . 3 Heat Flow Errors 32 | . . . . . . . . . . . . . . 10 1 12 . . . 1 . . 1 4 . 3 . . . . Energy Discharges 25 | . . . . . . . . . . . . . . 7 1 8 6 . . . . . . . . 2 . . . 1 Parts Rejected 1 | . . . . . . . . . . . . . . 1 . . . . . . . . . . . . . . . . Parts Fused 1 | . . . . . . . . . . . . . . . 1 . . . . . . . . . . . . . . . Data Loss (minor) 23 | . . . . . . . . . . . . . . 5 2 9 . . . 2 . . . . . 4 . . . 1 Data Loss (major) 10 | . . . . . . . . . . . . . . 2 1 1 1 . . . . . 3 . . . . . . 2 Misfires 10 | . . . . . . . . . . . . . . 3 . 3 . 1 . 1 . . 1 . . 1 . . . . Alerts 11 | . . . . . . . . . . . . . . 6 . 4 . . . 1 . . . . . . . . . . Weapon Failures 2 | . . . . . . . . . . . . . . 1 . . . . . . . . 1 . . . . . . . Overload Shots . | . . . . . . . . . . . . . . . . . . . . . . . . . . . . . . . Overflow Damage 1713 | . . . 59 68 . 8 9 92 23 74 119 . 197 334 . 106 13 . . . . . 311 36 . 160 . . . 104 Projectiles 784 | . . . . . . . . . . . 119 . 197 321 . 83 13 . . . . . . 36 . 15 . . . . Explosions 585 | . . . 53 68 . 8 9 . 10 63 . . . 13 . 23 . . . . . . 258 . . 80 . . . . Melee 344 | . . . 6 . . . . 92 13 11 . . . . . . . . . . . . 53 . . 65 . . . 104 Knockbacks 54 | . . 2 3 . . . . . 3 . 5 . 4 17 . 5 6 . . 1 . 1 7 . . . . . . . Impact 8 | . . . 1 . . . . . 3 . . . . 1 . 1 . . . . . . 2 . . . . . . . Kinetic 41 | . . 2 2 . . . . . . . 3 . 4 13 . 4 6 . . 1 . 1 5 . . . . . . . Secondary 5 | . . . . . . . . . . . 2 . . 3 . . . . . . . . . . . . . . . . Self-Inflicted Damage 1987 | . . . 102 47 . . . . 35 199 102 . . 186 . 347 . . . 62 . . 680 48 . 179 . . . . Shots 71 | . . . 2 2 . . . . 4 6 2 . . 12 . 16 . . . 1 . . 23 1 . 2 . . . . Rammed 96 | . 6 1 17 5 . 1 6 . 12 11 . . . 6 . 7 2 . . 2 . . 13 . . 7 . . . . Targets Rammed 108 | 1 8 1 17 5 . 1 7 . 15 14 . . . 6 . 7 4 . . 2 . . 13 . . 7 . . . . Kicked . | . . . . . . . . . . . . . . . . . . . . . . . . . . . . . . . Crushed 12 | 1 2 . . . . . 1 . 3 3 . . . . . . 2 . . . . . . . . . . . . . Highest Temperature 382 | . 27 87 74 3 . . . . 48 48 . . 9 252 105 254 189 241 108 282 48 312 382 248 . 335 . . . 7 Average Temperature 54 | . 10 43 12 2 . . . . 9 14 . . 5 22 65 59 51 83 49 92 29 153 88 68 . 114 . . . 4 Received Heat Transfer 5589 | . 66 24 477 54 . . 306 63 720 702 117 . 60 357 . 753 225 . . 27 . 9 1069 9 18 497 . . 9 27 Effects 9 | . . . . . . . . . . . . . . 1 . . . . . 1 . . 6 . . 1 . . . . Shutdowns 3 | . . . . . . . . . . . . . . . . . . . . . . . 3 . . . . . . . Energy Bleed 1 | . . . . . . . . . . . . . . . . . . . . 1 . . . . . . . . . . Interference 4 | . . . . . . . . . . . . . . 1 . . . . . . . . 3 . . . . . . . Short Circuit 1 | . . . . . . . . . . . . . . . . . . . . . . . . . . 1 . . . . Siege Activations 3 | . . . . . . . . . . . . . . . . 2 . . . . . . 1 . . . . . . . Total Turns 1383 | . . . . . . . . . . . . . . . . 1350 . . . . . . 33 . . . . . . . Longest Duration 1122 | . . . . . . . . . . . . . . . . 1122 . . . . . . 33 . . . . . . . Martial Activations . | . . . . . . . . . . . . . . . . . . . . . . . . . . . . . . . Shielding Activations . | . . . . . . . . . . . . . . . . . . . . . . . . . . . . . . . Robots Disrupted 1 | . . . . . . . . . . . . . . . . . . . . . . . . . . 1 . . . . Combat Hostiles 1 | . . . . . . . . . . . . . . . . . . . . . . . . . . 1 . . . . Robots Corrupted 8 | . . . 1 . . . . . 2 . . . . . . . . . . . . . 3 . . 2 . . . . Combat Hostiles 3 | . . . . . . . . . . . . . . . . . . . . . . . 1 . . 2 . . . . Parts Fried 13 | . . . 2 . . . . . 4 . 1 . 1 . . 1 . . . . . . 2 . . 2 . . . . Impact Corruptions 7 | . . . 1 . . . . . 2 1 1 . . . . . . . . . . . 2 . . . . . . . Robots Melted 1 | . . . . . . . . . . . . . . 1 . . . . . . . . . . . . . . . . Combat Hostiles 1 | . . . . . . . . . . . . . . 1 . . . . . . . . . . . . . . . . Parts Melted 12 | . . . 1 . . . . . . 2 1 . . 6 . 2 . . . . . . . . . . . . . . Heat Transferred 12594 | . 550 125 296 . . . . 111 37 962 185 . . 4958 740 3312 518 . . . . . 50 100 . 650 . . . . Parts Sabotaged 10 | . . . . . . . . . . . . . . . . 2 . . . . . . 6 . . 2 . . . . Parts Stolen . | . . . . . . . . . . . . . . . . . . . . . . . . . . . . . . . Parts Stripped . | . . . . . . . . . . . . . . . . . . . . . . . . . . . . . . . Power Chain Reactions 2 | . . . . . . . . . . . . . . . . . . . . . . . 1 1 . . . . . . Alert | -11 -10 -10 -9 -9 -9 -8 -8 -8 -8 -7 -7 -7 -6 -6 -6 -6 -6 -6 -6 -6 -5 -5 -5 -5 -5 -4 -3 -3 -2 -1 ------- Run | Yrd Mat Min Mat Min Exi Min Mat Gar Mat Fac Low Dat Pro Fac Was Fac Ext Cet Arc Hub Fac Was Fac Upp Upp Fac Res DSF Res Acc Maximum Alert Level 5 | . 1 . 3 2 . . 1 2 3 3 . . . 4 2 5 4 3 2 1 . . 5 . . 5 4 2 2 1 Low Security (%) 21 | 100 95 100 11 45 . 100 56 . 17 . . . . 20 . 2 . . . 58 100 100 7 . . . . . . 59 Level 1 20 | . 4 . 23 33 . . 43 81 33 19 . . . 27 81 1 . . 38 41 . . 7 . . . . . 75 40 Level 2 18 | . . . 35 20 . . . 18 33 62 . . . 15 18 4 . . 61 . . . 3 . . . . 100 25 . Level 3 13 | . . . 29 . . . . . 15 17 . . . 32 . 7 2 100 . . . . . . . . 62 . . . Level 4 15 | . . . . . . . . . . . . . . 4 . 41 97 . . . . . 38 . . 62 37 . . . Level 5 6 | . . . . . . . . . . . . . . . . 32 . . . . . . 24 . . 7 . . . . High Security 3 | . . . . . . . . . . . . . . . . 9 . . . . . . 18 . . 29 . . . . Max Security . | . . . . . . . . . . . . . . . . . . . . . . . . . . . . . . . Sterilizations 3 | . . . 1 . . . . . 1 . . . . . . . . . . . . . 1 . . . . . . . Peak Influence 4503 | 10 222 60 1004 470 . 90 317 455 1023 980 . . . 1283 449 2859 1491 861 479 339 163 48 4503 . . 1792 1115 693 432 280 Initial 1452 | . . 12 . 391 . . . 205 221 464 . . . 23 449 142 1400 804 318 153 161 48 . . . 1452 1100 688 389 252 Average 734 | 1 115 4 539 241 . 14 142 340 409 529 . . . 541 322 1509 1268 804 423 192 152 4 1708 . . 1558 1053 686 391 179 Influence Increases 22792 | 20 499 82 1804 192 . 90 673 290 1695 1397 372 . 477 1894 . 3847 1300 267 181 456 28 60 5609 115 30 942 18 15 63 376 Destroy 0b10 Robot/C 12040 | . 300 60 1040 80 . 60 420 120 980 840 300 . 340 1080 . 2000 640 160 80 140 . . 2740 100 20 460 . . . 80 Destroy 0b10 Robot/NC 1035 | 20 30 . 85 30 . 5 90 10 135 145 . . 15 115 . 110 30 10 5 20 5 . 130 5 . 25 . . . 15 Destroy Leader 2282 | . 66 10 246 20 . 10 106 10 248 246 10 . 40 262 . 328 34 . . 34 2 . 462 10 10 94 . . . 34 Allied During Kill 2804 | . . . . . . . . . . 4 2 . 67 . . 1018 541 88 63 142 5 . 867 . . 7 . . . . Trap Triggered on 0b10 280 | . . . 30 . . . . 40 110 . . . . 70 . 30 . . . . . . . . . . . . . . Successful Hack 471 | . 27 12 63 . . . 21 14 57 16 . . . 149 . 3 5 . . . 12 . 36 . . 16 3 . . 37 Select Force Hacks 60 | . . . 60 . . . . . . . . . . . . . . . . . . . . . . . . . . . Disable Machine 990 | . 15 . 60 . . . . 30 . 30 . . . 105 . 120 15 . 30 15 . . 465 . . 45 . . 15 45 Anti-Garrison Action 50 | . . . . . . . . 50 . . . . . . . . . . . . . . . . . . . . . . Destroy Structure 2000 | . 1 . 190 62 . 15 36 16 45 71 . . . 83 . 223 35 9 3 105 4 60 894 . . 100 . . 3 45 Partial Spotted 75 | . . . 15 . . . . . . . . . . . . . . . . . . . . . . . 15 . . 45 Lose Combat Pursuer 705 | . 60 . 15 . . . . . 120 45 60 . 15 30 . 15 . . . . . . 15 . . 195 . 15 45 75 Influence Decreases 22844 | 20 466 115 800 1166 30 90 357 151 1127 1442 1041 309 440 648 1080 1191 2721 908 539 564 220 199 1156 1758 534 1506 1028 240 334 664 Entered New Map 10836 | . . 21 . 613 30 . . 111 234 559 363 309 . 14 834 61 1459 634 479 286 170 91 . 1648 534 854 828 230 304 170 Time Decay 8952 | 20 466 94 770 553 . 90 327 . 608 703 568 . 400 581 246 770 592 214 60 278 50 70 686 110 . 362 50 . 30 254 Lost Part 1163 | . . . 30 . . . 30 20 10 150 90 . 20 53 . 120 80 . . . . . 190 . . 270 . 10 . 90 Lost Ally 1168 | . . . . . . . . 20 . 30 20 . 20 . . 240 440 60 . . . 38 280 . . 20 . . . . Purge Threat 725 | . . . . . . . . . 275 . . . . . . . 150 . . . . . . . . . 150 . . 150 Squads Dispatched 191 | . 3 1 7 1 . . 5 . 11 15 . . . 20 . 41 5 . . 2 . . 50 . . 20 2 1 . 7 Investigation 21 | . 1 1 4 . . . 1 . 3 2 . . . 6 . . . . . . . . 2 . . . 1 . . . Extermination 29 | . . . . . . . . . . 4 . . . 9 . 6 . . . 1 . . 4 . . 1 1 . . 3 Reinforcement 39 | . 2 . . 1 . . 1 . 5 7 . . . 2 . 5 1 . . 1 . . 7 . . 2 . 1 . 4 Assault 96 | . . . 3 . . . . . 3 2 . . . 3 . 30 4 . . . . . 34 . . 17 . . . . Garrison 6 | . . . . . . . 3 . . . . . . . . . . . . . . . 3 . . . . . . . Intercept . | . . . . . . . . . . . . . . . . . . . . . . . . . . . . . . . Searches Triggered . | . . . . . . . . . . . . . . . . . . . . . . . . . . . . . . . Unchained Authorized 2 | . . . . . . . . . . . . . . . . . . . . . . . . . . 1 . . . 1 Data Miner Redirects 15 | . . . . . . . . . . . . . . 1 . 6 2 . . . . . 5 . . 1 . . . . Construction Impeded 14 | . . . . 1 . . . . 2 2 . . . 1 . 3 1 . . 1 . . 3 . . . . . . . Haulers Reinforced 7 | . . . . . . . . . . 2 . . . 1 . 2 . . . . . . 1 . . . . . . 1 Active Scanning Responses . | . . . . . . . . . . . . . . . . . . . . . . . . . . . . . . . Cargo Convoy Interrupts 2 | . . . . . . . . . . 1 . . . 1 . . . . . . . . . . . . . . . . Stealth | -11 -10 -10 -9 -9 -9 -8 -8 -8 -8 -7 -7 -7 -6 -6 -6 -6 -6 -6 -6 -6 -5 -5 -5 -5 -5 -4 -3 -3 -2 -1 --------- Run | Yrd Mat Min Mat Min Exi Min Mat Gar Mat Fac Low Dat Pro Fac Was Fac Ext Cet Arc Hub Fac Was Fac Upp Upp Fac Res DSF Res Acc Distress Signals 57 | . 1 . 3 4 . . 6 . 10 8 . . . 4 . 1 3 2 . 2 . . 5 . . 3 . . 1 4 Communications Jammed 1 | . . . . . . . . . . . . . 1 . . . . . . . . . . . . . . . . . Distress Signals . | . . . . . . . . . . . . . . . . . . . . . . . . . . . . . . . Times Spotted 922 | . 32 3 91 14 . 3 31 9 91 69 18 . 18 66 . 136 52 9 1 6 . 4 165 7 3 62 . 3 2 27 Peak Tracking Total 18 | . 5 2 6 4 . 3 6 3 6 6 9 . 4 6 . 14 10 5 1 2 . 3 14 3 3 18 . 3 5 8 Tactical Retreats 34 | . 3 . 1 3 . . . . 5 3 3 . 1 2 . 1 . . . . . . 1 . . 6 . 1 1 3 Traps | -11 -10 -10 -9 -9 -9 -8 -8 -8 -8 -7 -7 -7 -6 -6 -6 -6 -6 -6 -6 -6 -5 -5 -5 -5 -5 -4 -3 -3 -2 -1 ------- Run | Yrd Mat Min Mat Min Exi Min Mat Gar Mat Fac Low Dat Pro Fac Was Fac Ext Cet Arc Hub Fac Was Fac Upp Upp Fac Res DSF Res Acc Traps Triggered 21 | . 1 . . . . . . 5 3 1 . . . 1 . . 3 . . 2 1 . 2 . . 2 . . . . Indirectly 1 | . . . . . . . . . . . . . . . . . . . . 1 . . . . . . . . . . Trap Hack Attempts 495 | . . . 79 . . . . . 88 . . . . 328 . . . . . . . . . . . . . . . . Triggered 1 | . . . . . . . . . . . . . . 1 . . . . . . . . . . . . . . . . Disarmed 3 | . . . 2 . . . . . . . . . . 1 . . . . . . . . . . . . . . . . Reprogrammed 43 | . . . 6 . . . . . 7 . . . . 30 . . . . . . . . . . . . . . . . Reused 29 | . . . 3 1 . . . 4 11 . . . . 7 . 3 . . . . . . . . . . . . . . Traps Extracted 10 | . . . 6 . . . . . 4 . . . . . . . . . . . . . . . . . . . . . Installed 23 | . . . 4 1 . . . 4 10 . . . . . . 4 . . . . . . . . . . . . . . Triggered 28 | . . . 3 . . . . 4 11 . . . . 7 . 3 . . . . . . . . . . . . . . Most Traps Carried 10 | . . 3 6 5 4 4 4 10 10 4 4 4 4 4 4 4 . . . . . . . . . . . . . . Machines | -11 -10 -10 -9 -9 -9 -8 -8 -8 -8 -7 -7 -7 -6 -6 -6 -6 -6 -6 -6 -6 -5 -5 -5 -5 -5 -4 -3 -3 -2 -1 ---------- Run | Yrd Mat Min Mat Min Exi Min Mat Gar Mat Fac Low Dat Pro Fac Was Fac Ext Cet Arc Hub Fac Was Fac Upp Upp Fac Res DSF Res Acc Machines Disabled 68 | . 1 . 4 . . . . 3 . 2 . . . 7 . 8 2 . 2 1 . . 31 . . 3 . . 1 3 Max in Single Turn 4 | . 1 . 2 . . . . 1 . 1 . . . 1 . 1 . . 1 1 . . 4 . . 2 . . 1 1 Garrison Access 10 | . . . . . . . . . 1 2 . . . 2 . 2 . . . . . . 1 . . 1 . . . 1 Garrison Relay 1 | . . . . . . . . 1 . . . . . . . . . . . . . . . . . . . . . . Network Hub 1 | . . . . . . . . . . . . . . . . . . . . 1 . . . . . . . . . . Machines Repaired . | . . . . . . . . . . . . . . . . . . . . . . . . . . . . . . . Machines Dismantled . | . . . . . . . . . . . . . . . . . . . . . . . . . . . . . . . Machines Sabotaged . | . . . . . . . . . . . . . . . . . . . . . . . . . . . . . . . Overloaded Fab Kills . | . . . . . . . . . . . . . . . . . . . . . . . . . . . . . . . Hacking | -11 -10 -10 -9 -9 -9 -8 -8 -8 -8 -7 -7 -7 -6 -6 -6 -6 -6 -6 -6 -6 -5 -5 -5 -5 -5 -4 -3 -3 -2 -1 --------- Run | Yrd Mat Min Mat Min Exi Min Mat Gar Mat Fac Low Dat Pro Fac Was Fac Ext Cet Arc Hub Fac Was Fac Upp Upp Fac Res DSF Res Acc Machines Accessed 117 | . 5 1 16 . 2 . 5 1 12 9 1 3 . 27 . 4 2 . . 1 1 . 10 . . 5 4 . 1 7 Terminals 53 | . 4 1 10 . . . 2 1 7 . . . . 9 . 2 2 . . 1 1 . 2 . . 2 3 . . 6 Fabricators 7 | . . . . . . . . . . . . . . 4 . . . . . . . . 2 . . 1 . . . . Repair Stations 17 | . 1 . 2 . . . 1 . 1 2 . . . 4 . . . . . . . . 3 . . 1 1 . 1 . Recycling Units 14 | . . . 2 . . . . . 2 3 . . . 5 . 1 . . . . . . 1 . . . . . . . Scanalyzers 10 | . . . 2 . . . 1 . 1 2 . . . 3 . . . . . . . . 1 . . . . . . . Garrison Access 10 | . . . . . . . 1 . 1 2 . . . 2 . 1 . . . . . . 1 . . 1 . . . 1 Total Hacks 301 | . 15 7 41 . 2 . 16 1 33 26 1 25 . 57 . 10 4 . . 2 1 . 29 . . 11 8 . 1 11 Successful 187 | . 6 2 26 . 2 . 11 1 20 17 1 25 . 35 . 4 2 . . . 1 . 16 . . 7 2 . . 9 Failed 113 | . 9 5 15 . . . 5 . 13 9 . . . 21 . 6 2 . . 2 . . 13 . . 4 6 . 1 2 Catastrophic 23 | . 1 . 4 . . . 1 . 1 3 . . . 4 . 1 . . . . . . 4 . . . 3 . . 1 Database Lockouts 1 | . . . . . . . . . . . . . . 1 . . . . . . . . . . . . . . . . Manual 105 | . 11 7 23 . 1 . 5 . 26 3 . . . 20 . 1 . 1 . . 1 . 1 . . 1 1 . . 3 Terminals 117 | . 12 7 23 . . . 3 1 24 . . . . 16 . 3 4 . . 2 1 . 3 . . 4 5 . . 9 Fabricators 17 | . . . . . . . . . . . . . . 11 . . . . . . . . 5 . . 1 . . . . Repair Stations 59 | . 3 . 6 . . . 7 . 3 7 . . . 8 . . . . . . . . 17 . . 4 3 . 1 . Recycling Units 31 | . . . 5 . . . . . 3 6 . . . 11 . 5 . . . . . . 1 . . . . . . . Scanalyzers 27 | . . . 7 . . . 1 . 1 10 . . . 7 . . . . . . . . 1 . . . . . . . Garrison Access 22 | . . . . . . . 5 . 2 3 . . . 4 . 2 . . . . . . 2 . . 2 . . . 2 Terminal Hacks 70 | . 4 2 6 . 2 . 1 1 7 . 1 25 . 8 . . 2 . . . . . 1 . . 1 2 . . 7 Record 7 | . . . . . 1 . . . . . . 6 . . . . . . . . . . . . . . . . . . Part Schematic 13 | . 1 . . . . . . . . . . 12 . . . . . . . . . . . . . . . . . . Robot Schematic 4 | . . . . . . . . . . . . 4 . . . . . . . . . . . . . . . . . . Robot Analysis 11 | . 3 . 1 . . . . . 5 . . . . 2 . . . . . . . . . . . . . . . . Prototype ID Bank 9 | . . 2 3 . . . 1 . . . . 3 . . . . . . . . . . . . . . . . . . Open Door 2 | . . . . . . . . . . . 1 . . . . . . . . . . . . . . . . . . 1 Open DSF 1 | . . . . . . . . . . . . . . . . . . . . . . . . . . . 1 . . . Level Access Points 1 | . . . . . . . . . . . . . . . . . . . . . . . . . . . . . . 1 Branch Access Points 2 | . . . . . . . . . . . . . . 1 . . . . . . . . . . . 1 . . . . Terminal Index 1 | . . . . . . . . . . . . . . . . . . . . . . . . . . . . . . 1 Alert Level 1 | . . . 1 . . . . . . . . . . . . . . . . . . . . . . . . . . . Unreport Threat 3 | . . . . . . . . . . . . . . . . . 1 . . . . . . . . . 1 . . 1 Locate Traps 8 | . . . . . . . . . 2 . . . . 5 . . . . . . . . . . . . . . . 1 Recall Extermination 1 | . . . . . . . . . . . . . . . . . . . . . . . . . . . . . . 1 Zone Layout 4 | . . . 1 . . . . . . . . . . . . . 1 . . . . . 1 . . . . . . 1 Garrison Registry 1 | . . . . . . . . 1 . . . . . . . . . . . . . . . . . . . . . . Proto ID Catalog 1 | . . . . . 1 . . . . . . . . . . . . . . . . . . . . . . . . . Fabricator Hacks 6 | . . . . . . . . . . . . . . 4 . . . . . . . . 2 . . . . . . . Load Schematic 3 | . . . . . . . . . . . . . . 2 . . . . . . . . 1 . . . . . . . Build 3 | . . . . . . . . . . . . . . 2 . . . . . . . . 1 . . . . . . . Repair Station Hacks 30 | . 2 . 4 . . . 6 . . 4 . . . 2 . . . . . . . . 9 . . 3 . . . . Scan Component 17 | . 1 . 2 . . . 3 . . 2 . . . 1 . . . . . . . . 6 . . 2 . . . . Repair 13 | . 1 . 2 . . . 3 . . 2 . . . 1 . . . . . . . . 3 . . 1 . . . . Recycling Unit Hacks 6 | . . . . . . . . . . 2 . . . 3 . 1 . . . . . . . . . . . . . . Retrieve Components 6 | . . . . . . . . . . 2 . . . 3 . 1 . . . . . . . . . . . . . . Scanalyzer 20 | . . . 6 . . . 1 . 1 6 . . . 5 . . . . . . . . 1 . . . . . . . Insert Component 2 | . . . 1 . . . . . . . . . . 1 . . . . . . . . . . . . . . . . Analyze 2 | . . . 1 . . . . . . . . . . 1 . . . . . . . . . . . . . . . . Retrieve Study 16 | . . . 4 . . . 1 . 1 6 . . . 3 . . . . . . . . 1 . . . . . . . Garrison Access Hacks 18 | . . . . . . . 1 . 2 3 . . . 4 . 2 . . . . . . 2 . . 2 . . . 2 Unlock Access 1 | . . . . . . . 1 . . . . . . . . . . . . . . . . . . . . . . . Seal Access 9 | . . . . . . . . . 1 2 . . . 2 . 1 . . . . . . 1 . . 1 . . . 1 Coupler Status 8 | . . . . . . . . . 1 1 . . . 2 . 1 . . . . . . 1 . . 1 . . . 1 Unauthorized Hacks 37 | . . . 10 . . . 2 . 10 2 . . . 9 . 1 . . . . 1 . 1 . . 1 . . . . Terminals 17 | . . . 5 . . . 1 . 8 . . . . 2 . . . . . . 1 . . . . . . . . . Track 3 | . . . 1 . . . . . 2 . . . . . . . . . . . . . . . . . . . . . Botnet 5 | . . . 1 . . . 1 . 1 . . . . 1 . . . . . . 1 . . . . . . . . . Disrupt 9 | . . . 3 . . . . . 5 . . . . 1 . . . . . . . . . . . . . . . . Fabricators 5 | . . . . . . . . . . . . . . 4 . . . . . . . . . . . 1 . . . . Liberate 3 | . . . . . . . . . . . . . . 3 . . . . . . . . . . . . . . . . Haulers 2 | . . . . . . . . . . . . . . 1 . . . . . . . . . . . 1 . . . . Repair Stations 2 | . . . 1 . . . . . . . . . . 1 . . . . . . . . . . . . . . . . Patch 2 | . . . 1 . . . . . . . . . . 1 . . . . . . . . . . . . . . . . Recycling Units 12 | . . . 4 . . . . . 2 2 . . . 2 . 1 . . . . . . 1 . . . . . . . Reject 9 | . . . 2 . . . . . 2 2 . . . 2 . 1 . . . . . . . . . . . . . . Mask 1 | . . . . . . . . . . . . . . . . . . . . . . . 1 . . . . . . . Tunnel 2 | . . . 2 . . . . . . . . . . . . . . . . . . . . . . . . . . . Scanalyzers . | . . . . . . . . . . . . . . . . . . . . . . . . . . . . . . . Garrison Access 1 | . . . . . . . 1 . . . . . . . . . . . . . . . . . . . . . . . Reprogram 1 | . . . . . . . 1 . . . . . . . . . . . . . . . . . . . . . . . Data Cores Recovered . | . . . . . . . . . . . . . . . . . . . . . . . . . . . . . . . Used . | . . . . . . . . . . . . . . . . . . . . . . . . . . . . . . . Hacking Detections 87 | . 5 1 12 . . . 4 1 10 5 . . . 24 . 4 1 . . 1 1 . 8 . . 3 3 . . 4 Full Trace Events 14 | . . 1 2 . . . 1 . . 2 . . . 5 . . . . . . . . 2 . . . 1 . . . Feedback Events . | . . . . . . . . . . . . . . . . . . . . . . . . . . . . . . . Feedback Blocked . | . . . . . . . . . . . . . . . . . . . . . . . . . . . . . . . Robot Schematics Acquired 4 | . . . . . . . . . . . . 4 . . . . . . . . . . . . . . . . . . Robots Built . | . . . . . . . . . . . . . . . . . . . . . . . . . . . . . . . Authchips . | . . . . . . . . . . . . . . . . . . . . . . . . . . . . . . . Time . | . . . . . . . . . . . . . . . . . . . . . . . . . . . . . . . Total Robot Build Rating . | . . . . . . . . . . . . . . . . . . . . . . . . . . . . . . . Part Schematics Acquired 15 | . 1 . 1 . . . . . . . . 12 . 1 . . . . . . . . . . . . . . . . Parts Built 5 | . . . . . . . . . . . . . . 4 . . . . . . . . 1 . . . . . . . Authchips . | . . . . . . . . . . . . . . . . . . . . . . . . . . . . . . . Time 231 | . . . . . . . . . . . . . . 164 . . . . . . . . 67 . . . . . . . Total Part Build Rating 28 | . . . . . . . . . . . . . . 24 . . . . . . . . 4 . . . . . . . Part Studies Acquired 16 | . . . 4 . . . 1 . 1 6 . . . 3 . . . . . . . . 1 . . . . . . . Parts Repaired 13 | . 1 . 2 . . . 3 . . 2 . . . 1 . . . . . . . . 3 . . 1 . . . . Time 638 | . 26 . 77 . . . 90 . . 57 . . . 44 . . . . . . . . 244 . . 100 . . . . Parts Recycled . | . . . . . . . . . . . . . . . . . . . . . . . . . . . . . . . Recycled Matter . | . . . . . . . . . . . . . . . . . . . . . . . . . . . . . . . Retrieved Matter . | . . . . . . . . . . . . . . . . . . . . . . . . . . . . . . . Retrieved Components 26 | . . . . . . . . . . 13 . . . 13 . . . . . . . . . . . . . . . . Parts Scanalyzed 2 | . . . 1 . . . . . . . . . . 1 . . . . . . . . . . . . . . . . Part Schematics Acquired 2 | . . . 1 . . . . . . . . . . 1 . . . . . . . . . . . . . . . . Parts Damaged . | . . . . . . . . . . . . . . . . . . . . . . . . . . . . . . . Bothacking | -11 -10 -10 -9 -9 -9 -8 -8 -8 -8 -7 -7 -7 -6 -6 -6 -6 -6 -6 -6 -6 -5 -5 -5 -5 -5 -4 -3 -3 -2 -1 ------------ Run | Yrd Mat Min Mat Min Exi Min Mat Gar Mat Fac Low Dat Pro Fac Was Fac Ext Cet Arc Hub Fac Was Fac Upp Upp Fac Res DSF Res Acc Used RIF Installer 1 | . . . . . . . . 1 . . . . . . . . . . . . . . . . . . . . . . Robots Hacked 17 | . . . . . 4 . . . 1 1 . 1 1 1 . 3 1 . . . . . . . . 4 . . . . Non-combat 5 | . . . . . 3 . . . 1 . . . . 1 . . . . . . . . . . . . . . . . Combat 12 | . . . . . 1 . . . . 1 . 1 1 . . 3 1 . . . . . . . . 4 . . . . Robot Hacks Applied 20 | . . . . . 4 . . . 3 1 . 1 1 1 . 3 1 . . . . . . . . 5 . . . . parse_system 7 | . . . . . 4 . . . . . . 1 1 . . . 1 . . . . . . . . . . . . . no_distress 1 | . . . . . . . . . . . . . . 1 . . . . . . . . . . . . . . . . purge_threat 2 | . . . . . . . . . 2 . . . . . . . . . . . . . . . . . . . . . scatter_targeting 1 | . . . . . . . . . . . . . . . . . . . . . . . . . . 1 . . . . overload_power 1 | . . . . . . . . . . . . . . . . . . . . . . . . . . 1 . . . . amplify_resonance 1 | . . . . . . . . . . . . . . . . . . . . . . . . . . 1 . . . . overwrite_iff 4 | . . . . . . . . . . . . . . . . 3 . . . . . . . . . 1 . . . . formatsys_low 1 | . . . . . . . . . 1 . . . . . . . . . . . . . . . . . . . . . formatsys_high 2 | . . . . . . . . . . 1 . . . . . . . . . . . . . . . 1 . . . . Relay Couplers Released 14 | . . . . . . . . 4 1 1 . . . 3 . 2 . . . . . . 1 . . 2 . . . . Machine Destruction 14 | . . . . . . . . 4 1 1 . . . 3 . 2 . . . . . . 1 . . 2 . . . . Attached 5 | . . . . . . . . . 1 1 . . . . . 1 . . . . . . . . . 2 . . . . Fabnet Peak Effective % . | . . . . . . . . . . . . . . . . . . . . . . . . . . . . . . . Robots Rewired 25 | . . . . . . . . . . . 1 . . . . . 24 . . . . . . . . . . . . . Allies Hacked 3 | . . . . . . . . . . . . . . . . 1 . . . . . . 2 . . . . . . . Hacks Repelled . | . . . . . . . . . . . . . . . . . . . . . . . . . . . . . . . Allies | -11 -10 -10 -9 -9 -9 -8 -8 -8 -8 -7 -7 -7 -6 -6 -6 -6 -6 -6 -6 -6 -5 -5 -5 -5 -5 -4 -3 -3 -2 -1 -------- Run | Yrd Mat Min Mat Min Exi Min Mat Gar Mat Fac Low Dat Pro Fac Was Fac Ext Cet Arc Hub Fac Was Fac Upp Upp Fac Res DSF Res Acc Total Allies 91 | . . . . . . . 1 . 1 1 1 . 1 . 20 3 36 5 . . . 20 . . . 2 . . . . Largest Group 20 | . . . . . . . 1 1 1 2 1 . 1 . 20 20 18 5 3 3 3 20 18 . . 1 . . . . Highest-Rated Group 726 | . . . . . . . 16 16 10 42 16 . 96 . 706 706 643 529 288 288 288 726 687 . . 49 . . . . Highest-Rated Ally 159 | . . . . . . . 16 16 10 32 16 . 96 . 50 50 159 145 96 96 96 96 54 . . 49 . . . . Total Orders 9 | . . . . . . . . . 5 4 . . . . . . . . . . . . . . . . . . . . STAY 6 | . . . . . . . . . 4 2 . . . . . . . . . . . . . . . . . . . . FOLLOW 3 | . . . . . . . . . 1 2 . . . . . . . . . . . . . . . . . . . . Ally Attacks 884 | . . . . . . . 1 2 . 6 . . 25 . . 245 224 29 10 17 . 94 217 . . 14 . . . . Total Damage 25204 | . . . . . . . 15 35 . 285 . . 575 . . 8418 4795 921 327 749 . 3298 5399 . . 387 . . . . Kills 154 | . . . . . . . . . . 2 . . 2 . . 54 32 5 3 7 . 4 42 . . 3 . . . . Allies Corrupted 5 | . . . . . . . . . . . . . . . . . . . . . . . 5 . . . . . . . Allies Melted 1 | . . . . . . . . . . . . . . . . 1 . . . . . . . . . . . . . . Intel | -11 -10 -10 -9 -9 -9 -8 -8 -8 -8 -7 -7 -7 -6 -6 -6 -6 -6 -6 -6 -6 -5 -5 -5 -5 -5 -4 -3 -3 -2 -1 ------- Run | Yrd Mat Min Mat Min Exi Min Mat Gar Mat Fac Low Dat Pro Fac Was Fac Ext Cet Arc Hub Fac Was Fac Upp Upp Fac Res DSF Res Acc Active Infowar (turns) 3958 | . . . 16 . . . . . . . 636 176 661 2029 . . . . . . . . 1 . . 439 . . . . Terrain 2029 | . . . . . . . . . . . . . . 2029 . . . . . . . . . . . . . . . . Seismic 17 | . . . 16 . . . . . . . . . . . . . . . . . . . 1 . . . . . . . Jamming 1912 | . . . . . . . . . . . 636 176 661 . . . . . . . . . . . . 439 . . . . Robot Analysis Total 11 | . 3 . 1 . . . . . 5 . . . . 2 . . . . . . . . . . . . . . . . Derelict Logs Recovered 9 | . . 3 . 1 . . . . . . 2 . 1 . . . . . . . . . . 1 1 . . . . . Drone Launches . | . . . . . . . . . . . . . . . . . . . . . . . . . . . . . . . Drone Recoveries . | . . . . . . . . . . . . . . . . . . . . . . . . . . . . . . . Exploration | -11 -10 -10 -9 -9 -9 -8 -8 -8 -8 -7 -7 -7 -6 -6 -6 -6 -6 -6 -6 -6 -5 -5 -5 -5 -5 -4 -3 -3 -2 -1 ------------- Run | Yrd Mat Min Mat Min Exi Min Mat Gar Mat Fac Low Dat Pro Fac Was Fac Ext Cet Arc Hub Fac Was Fac Upp Upp Fac Res DSF Res Acc Turns Passed 44455 | 156 1269 1063 4583 1604 589 579 1226 1141 5454 3044 1719 176 1198 5024 532 4941 1878 458 121 615 114 664 4040 235 15 1173 107 122 60 555 Spaces Moved 18214 | 68 490 599 1321 504 285 285 399 478 2093 1054 739 88 538 1881 210 1165 816 171 48 256 63 357 1738 333 37 820 180 97 130 971 Core 319 | 3 . . . . . . . . . . . . . . . . . . . . . . 61 225 . 30 . . . . Treads 15488 | 65 490 599 1321 504 285 285 399 478 1960 1054 739 88 538 1642 210 1165 816 171 48 256 63 357 1677 . . 278 . . . . Legs . | . . . . . . . . . . . . . . . . . . . . . . . . . . . . . . . Wheels 372 | . . . . . . . . . 133 . . . . 239 . . . . . . . . . . . . . . . . Hover 124 | . . . . . . . . . . . . . . . . . . . . . . . . . . 124 . . . . Flight 1911 | . . . . . . . . . . . . . . . . . . . . . . . . 108 37 388 180 97 130 971 Fastest Speed 31 | 50 160 160 160 200 200 200 200 200 155 200 160 160 160 113 212 160 160 200 200 160 160 160 50 35 35 35 37 34 31 31 Average Speed 175 | 155 160 160 195 200 200 200 200 200 197 211 213 196 199 196 222 216 183 210 200 199 160 160 187 49 35 84 37 65 31 31 Slowest Speed 320 | 160 160 160 240 200 200 200 200 240 240 280 280 200 200 212 240 240 230 230 200 200 160 240 320 250 35 195 37 105 34 39 Overloaded Moves 30 | . . . . . . . . . . . . . . . . . . . . . . . . . . . . 26 . 4 Propulsion Burnouts . | . . . . . . . . . . . . . . . . . . . . . . . . . . . . . . . Robots Hopped 8 | . . . . . . . . . . . . . . . . . . . . . . . 1 . . 1 . . 1 5 Potential Cave-ins . | . . . . . . . . . . . . . . . . . . . . . . . . . . . . . . . Cave-ins Triggered . | . . . . . . . . . . . . . . . . . . . . . . . . . . . . . . . Exploration Rate (%) 55 | 4 73 97 91 99 70 71 26 53 93 27 94 74 77 57 88 27 85 57 62 30 3 94 40 56 11 23 6 88 3 33 Regions Visited 30 Branch Regions 13 Pre-discovered Areas 7 | . . 2 2 1 1 . . . . . . 1 . . . . . . . . . . . . . . . . . . Known Exits Taken 9 | . . . . . . . 1 . . 1 . . 1 . . 1 . . . 1 . . 1 1 . 1 1 . . . Unknown Exits Taken 15 | 1 1 1 1 1 1 1 . . 1 . 1 1 . . . . 1 1 1 . . . . . 1 . . . 1 . Scrap Searched 12 | . . 1 . 1 . 3 . . . . 3 . 2 . . . . . . . . . . 2 . . . . . . Spaces Dug 132 | . . . 10 19 . . 1 6 . 29 8 . . 15 . 1 . . . 2 . . 8 . . 17 . . 1 15 Terrain Destroyed 1496 | . . . 214 66 . 21 32 20 62 79 56 . 7 92 . 168 4 2 1 174 2 3 415 4 . 58 . . 1 15 Melee 41 | . . . 1 . . . 1 6 . 2 . . . . . . . . . . . . . . . 15 . . 1 15 Projectile 141 | . . . . . . . . . . 2 6 . 7 41 . 8 4 2 1 12 2 3 46 1 . 6 . . . . AOE 1314 | . . . 213 66 . 21 31 14 62 75 50 . . 51 . 160 . . . 162 . . 369 3 . 37 . . . . Terrain Rammed . | . . . . . . . . . . . . . . . . . . . . . . . . . . . . . . . Walls Destroyed . | . . . . . . . . . . . . . . . . . . . . . . . . . . . . . . . Machines Disabled . | . . . . . . . . . . . . . . . . . . . . . . . . . . . . . . . Actions | -11 -10 -10 -9 -9 -9 -8 -8 -8 -8 -7 -7 -7 -6 -6 -6 -6 -6 -6 -6 -6 -5 -5 -5 -5 -5 -4 -3 -3 -2 -1 --------- Run | Yrd Mat Min Mat Min Exi Min Mat Gar Mat Fac Low Dat Pro Fac Was Fac Ext Cet Arc Hub Fac Was Fac Upp Upp Fac Res DSF Res Acc Total 28149 | 96 875 688 3085 1062 302 290 663 610 3133 1577 839 92 609 2859 255 3377 1115 248 64 337 75 420 2259 388 37 1177 219 151 141 1106 Wait 6601 | 1 279 72 1416 520 . . 124 45 653 256 25 . 20 320 17 2032 122 16 6 49 5 33 251 26 . 176 33 44 7 53 Move 18171 | 67 489 598 1320 503 284 284 399 477 2092 1053 738 87 537 1881 209 1164 816 170 47 255 63 356 1735 332 36 817 179 96 127 960 Hop 8 | . . . . . . . . . . . . . . . . . . . . . . . 1 . . 1 . . 1 5 Pick Up 247 | 8 8 5 28 1 4 . 11 10 21 26 7 . 5 22 2 10 25 14 2 1 2 4 21 1 . 5 1 1 1 1 Fast Attach 172 | 6 4 1 7 1 . . 2 3 12 9 8 . 4 13 3 4 3 2 . . . 2 21 4 . 36 2 8 3 14 Attach 123 | . 1 . 7 . . . 8 1 6 16 9 2 1 11 . 14 13 2 . 4 1 1 11 6 . 5 2 . . 2 Detach 64 | . 1 1 7 . . . . . 4 2 5 2 1 4 2 7 2 2 . 3 . 2 6 5 . 4 2 1 . 1 Swap 348 | . 7 1 44 7 6 3 15 17 41 40 4 . . 44 3 19 15 13 2 6 2 8 37 . . 14 . . . . Drop 265 | 1 13 1 33 2 4 . 12 12 43 12 7 . 3 26 8 12 8 15 2 5 1 1 25 . . 11 . 1 . 7 Fire 1262 | 12 63 8 122 22 . 2 78 21 143 138 30 . 37 197 11 103 53 11 5 12 1 13 136 10 . 34 . . . . Melee 211 | . 2 . 1 . 4 . 7 12 4 10 1 1 1 7 . . 19 3 . . . . 2 4 1 67 . . 2 63 Ram 1 | . . . . . . . . . . . . . . . . . . . . . . . . . . 1 . . . . Kick . | . . . . . . . . . . . . . . . . . . . . . . . . . . . . . . . Crush 106 | 1 8 1 17 5 . 1 7 . 15 14 . . . 6 . 7 3 . . 2 . . 13 . . 6 . . . . Escape Stasis 14 | . . . . . . . . 8 . . . . . . . . 6 . . . . . . . . . . . . . Rewire 38 | . . . . . . . . . 1 1 5 . . . . 1 30 . . . . . . . . . . . . . Trap 518 | . . . 83 1 . . . 4 98 . . . . 328 . 4 . . . . . . . . . . . . . . Miscellaneous . | . . . . . . . . . . . . . . . . . . . . . . . . . . . . . . . Route ------- -11/Scrapyard -10/Materials (discovered 4 exits: *Mat x2 / *Min x2) -10/Mines (discovered 2 exits: *Mat x2) -9/Materials (discovered 5 exits: *Mat x3 / [*Min x2]) -9/Mines (discovered 3 exits: *Mat x2 / *Exi) -9/Exiles -8/Mines -8/Materials -8/Garrison (discovered 3 exits: *Mat x3) -8/Materials (discovered 2 exits: *Fac x2) -7/Factory -7/Lower Caves (discovered 2 exits: [*Low] / *Dat) -7/Data Miner -6/Proximity Caves -6/Factory (discovered 6 exits: *Fac x2 / *Low x2 / Ext x2) -6/Waste -6/Factory (discovered 3 exits: *Fac / *Low / *Ext) -6/Extension (discovered 2 exits: *Fac / *Cet) -6/Cetus (discovered 2 exits: *Fac / [*Arc]) -6/Archives -6/Hub_04(d) -5/Factory -5/Waste -5/Factory (discovered 2 exits: *Fac / *Upp) -5/Upper Caves -5/Upper Caves -4/Factory (discovered 4 exits: *Res x2 / *Upp x2) -3/Research (discovered 2 exits: Arm / DSF) -3/DSF -2/Research -1/Access To Epsilon Eridani History --------- Turn | Location | Event 6 | -11/Scrapyard | Discovered new exit (range 14) 157 | -11/Scrapyard | Entered Materials 304 | -10/Materials | Build established: Mutant 330 | -10/Materials | Discovered new exit (range 16) 597 | -10/Materials | Discovered new exit (range 15) 912 | -10/Materials | Discovered new exit (range 13) 914 | -10/Materials | Discovered new exit (range 9) 1292 | -10/Materials | Repaired Lgt. Treads 1426 | -10/Materials | Entered Mines 1433 | -10/Mines | Met a Derelict bent on vengeance 1704 | -10/Mines | Received a Rocket Launcher from a helpful Derelict 1765 | -10/Mines | Learned Materials trap positions 1843 | -10/Mines | Discovered new exit (range 8) 2091 | -10/Mines | Learned location of Storage (-7) 2095 | -10/Mines | Learned Materials trap positions 2186 | -10/Mines | Discovered new exit (range 8) 2229 | -10/Mines | Found a hidden stash of uninstalled traps 2489 | -10/Mines | Entered Materials 2489 | -9/Materials | Evolved 2 slots: Propulsion x1, Utility x1 2490 | -9/Materials | Loaded intel: 14 trap records 2841 | -9/Materials | Discovered new exit (range 14) 3630 | -9/Materials | Discovered new exit (range 16) 3662 | -9/Materials | Build established: Scavenger-Mutant 4183 | -9/Materials | Repaired Cld. Ion Engine? 4191 | -9/Materials | Build established: Mutant 4341 | -9/Materials | Discovered new exit (range 10) 4381 | -9/Materials | Repaired Lgt. Treads+ 4612 | -9/Materials | Discovered new exit (range 15) 5689 | -9/Materials | First assault squad dispatched 5729 | -9/Materials | Discovered new exit (range 15) 6914 | -9/Materials | Sterilization system engaged 6914 | -9/Materials | Non-combat units ordered to evacuate 7014 | -9/Materials | Combat units ordered to evacuate 7072 | -9/Materials | Entered Mines 7118 | -9/Mines | Discovered new exit (range 5) 7144 | -9/Mines | Discovered new exit (range 14) 7173 | -9/Mines | Assembled infested the area 7389 | -9/Mines | YI-UF0 nonchalantly dropped a Grenade Launcher on the ground 7441 | -9/Mines | Found a damaged Exp. Sensor Array with a note attached 7615 | -9/Mines | Build established: Scavenger-Mutant 8058 | -9/Mines | Found Prototype Launcher 8074 | -9/Mines | Destroyed YI-UF0 8093 | -9/Mines | Identified YI-UF0's Doublenader 8666 | -9/Mines | Deemed a non-threat by the Exiles lab entrance 8668 | -9/Mines | Discovered new exit (range 5) 8676 | -9/Mines | Entered Exiles 8731 | -9/Exiles | Met 8R-AWN 8766 | -9/Exiles | Met EX-HEX 8842 | -9/Exiles | Met EX-DEC 8895 | -9/Exiles | Learned location of Zion (-6) 8941 | -9/Exiles | Met EX-BIN 8968 | -9/Exiles | Aligned with FarCom system 8970 | -9/Exiles | Given EX-Vault access code 9018 | -9/Exiles | Opened EX-Vault 9030 | -9/Exiles | Found Longsword +1 9071 | -9/Exiles | Warned to stay clear of 0b10 Research branches 9246 | -9/Exiles | Discovered new exit (range 11) 9265 | -9/Exiles | Left Exiles lab with Longsword +1 9265 | -9/Exiles | Entered Mines 9778 | -8/Mines | Discovered new exit (range 9) 9844 | -8/Mines | Entered Materials 9844 | -8/Materials | Evolved 2 slots: Utility x2 9845 | -8/Materials | Loaded intel: 13 trap records 10059 | -8/Materials | Repaired Lgt. Armor Plating? 10132 | -8/Materials | Repaired Lgt. Treads+ 10172 | -8/Materials | Repaired Imp. Light Armor Plating 10719 | -8/Materials | Garrison activated, responded to threat 10969 | -8/Materials | Garrison activated, responded to threat 11064 | -8/Materials | Identified exit to Garrison 11070 | -8/Materials | Entered Garrison 11070 | -8/Garrison | Accompanied by 1 ally 11328 | -8/Garrison | Triggered checkpoint 11510 | -8/Garrison | Triggered checkpoint 11582 | -8/Garrison | Garrison Relay disabled 11938 | -8/Garrison | Triggered checkpoint 11956 | -8/Garrison | Build established: Trapper-Mutant 11973 | -8/Garrison | Discovered new exit (range 19) 11973 | -8/Garrison | Discovered new exit (range 49) 11973 | -8/Garrison | Discovered new exit (range 48) 11999 | -8/Garrison | Triggered checkpoint 12156 | -8/Garrison | Installed Relay Interface Framework 12211 | -8/Garrison | Entered Materials 13411 | -8/Materials | Discovered new exit (range 3) 15062 | -8/Materials | Discovered new exit (range 16) 15389 | -8/Materials | Build established: Mutant 15811 | -8/Materials | First assault squad dispatched 17321 | -8/Materials | Sterilization system engaged 17321 | -8/Materials | Non-combat units ordered to evacuate 17421 | -8/Materials | Combat units ordered to evacuate 17621 | -8/Materials | Ambient heat levels rising (+10) 17665 | -8/Materials | Entered Factory 17665 | -7/Factory | Accompanied by 1 ally 17665 | -7/Factory | Evolved 2 slots: Propulsion x1, Utility x1 17972 | -7/Factory | Build established: Scavenger-Mutant 18480 | -7/Factory | Discovered new exit (range 16) 18589 | -7/Factory | Lost 4 parts (2n1u1w) 18854 | -7/Factory | Build established: Mutant 18991 | -7/Factory | Identified exit to Lower Caves 19123 | -7/Factory | Cargo convoy interrupted 19265 | -7/Factory | First assault squad dispatched 19425 | -7/Factory | Repaired Lgt. Treads+ 19720 | -7/Factory | Lost 5 parts (1p2n1u1w) 19913 | -7/Factory | Repaired Med. Treads+ 19961 | -7/Factory | Build established: Scientist-Mutant 20524 | -7/Factory | Build established: Mutant 20709 | -7/Factory | Entered Lower Caves 20803 | -7/Lower Caves | Attracted the attention of an 0b10 checkpoint 21100 | -7/Lower Caves | Build established: Scavenger-Mutant 21132 | -7/Lower Caves | Learned location of 1 exit from Factory 21416 | -7/Lower Caves | Attracted the attention of an 0b10 outpost 21463 | -7/Lower Caves | Core integrity fell below 50% 21507 | -7/Lower Caves | Lost 9 parts (1p5n2u1w) 21728 | -7/Lower Caves | Build established: Mutant 22040 | -7/Lower Caves | Discovered new exit (range 14) 22041 | -7/Lower Caves | Build established: Scavenger-Mutant 22369 | -7/Lower Caves | A Derelict revealed a hidden shortcut to meet someone special 22428 | -7/Lower Caves | Entered Data Miner 22428 | -7/Data Miner | Discovered new exit (range 6) 22466 | -7/Data Miner | Met Data Miner 22532 | -7/Data Miner | Learned location of Section 7 (-2) 22532 | -7/Data Miner | Acquired the access code to Warlord's prototype stash 22558 | -7/Data Miner | Received God Mode back door access code from Data Miner 22604 | -7/Data Miner | Entered Proximity Caves 22636 | -6/Proximity Caves | Identified exit to Factory 22769 | -6/Proximity Caves | Escorted by Enhanced Grunt 23070 | -6/Proximity Caves | Attracted the attention of an 0b10 checkpoint 23802 | -6/Proximity Caves | Entered Factory 23802 | -6/Factory | Evolved 2 slots: Power x1, Utility x1 23803 | -6/Factory | Identified exit to Factory 24068 | -6/Factory | Watched by a mysterious "MATRIX" hacker. 24375 | -6/Factory | Identified exit to Lower Caves 24375 | -6/Factory | Identified exit to Extension 24377 | -6/Factory | Build established: Scavenger-Skirmisher 24417 | -6/Factory | Incoming investigation squad redirected 24933 | -6/Factory | Fabricated Weapon Mount? 25121 | -6/Factory | Discovered exit to Factory (range 14) 25341 | -6/Factory | Build established: Mutant 25362 | -6/Factory | Spotted B-75 Beast 25366 | -6/Factory | Destroyed B-75 Beast 25807 | -6/Factory | Found Prototype Launcher 25807 | -6/Factory | Identified Rocket Array 26334 | -6/Factory | Cargo convoy interrupted 26934 | -6/Factory | Repaired Arm. Huge Wheel+? 27041 | -6/Factory | Fabricated Adv. Medium Treads? 28109 | -6/Factory | Central database locked down 28232 | -6/Factory | Build established: Skirmisher 28352 | -6/Factory | First assault squad dispatched 28749 | -6/Factory | Build established: Scavenger-Mutant 28826 | -6/Factory | Sucked down chute 28826 | -6/Factory | Entered Waste 28827 | -6/Waste | Joined by Warlord forces that had cleared the area 29257 | -6/Waste | Discovered new exit (range 13) 29358 | -6/Waste | Entered Factory 29358 | -6/Factory | Accompanied by 20 allies 29383 | -6/Factory | Noticed a derelict Sapper rigging charges 29584 | -6/Factory | Lost 5 allies 29952 | -6/Factory | Lost 3 allies 29995 | -6/Factory | Discovered exit to Lower Caves (range 10) 30058 | -6/Factory | First assault squad dispatched 30207 | -6/Factory | P-60 Hacker assimilated allied NL-N15(m) 30208 | -6/Factory | P-60 Hacker assimilated allied IO-N22(m) 30811 | -6/Factory | Discovered exit to Factory (range 14) 31125 | -6/Factory | Incoming assault squad redirected 31137 | -6/Factory | Incoming assault squad redirected 31459 | -6/Factory | Discovered exit to Extension (range 15) 31824 | -6/Factory | Incoming assault squad redirected 32401 | -6/Factory | P-60 Hacker assimilated allied FR-9AY(d) 32878 | -6/Factory | Incoming assault squad redirected 32886 | -6/Factory | Incoming assault squad redirected 33225 | -6/Factory | Incoming assault squad redirected 33818 | -6/Factory | High security lockdown imminent 33845 | -6/Factory | Destroyed 10 combat bots 33898 | -6/Factory | High security lockdown engaged 34229 | -6/Factory | Core integrity fell below 50% 34257 | -6/Factory | Lost 5 parts (2p2n1u) 34299 | -6/Factory | Entered Extension 34309 | -6/Extension | Lost 4 parts (2p2w) 34310 | -6/Extension | Destroyed 33 combat bots 34383 | -6/Extension | Rescued a captive Derelict 34398 | -6/Extension | Core integrity fell below 20% 34417 | -6/Extension | Rescued a captive Derelict 34418 | -6/Extension | Rescued a captive Derelict 34420 | -6/Extension | Rescued a captive Derelict 34451 | -6/Extension | Rescued a captive Derelict 34452 | -6/Extension | Rescued a captive Derelict 34714 | -6/Extension | Rescued a captive Derelict 34798 | -6/Extension | Rescued a captive Derelict 34798 | -6/Extension | Rescued a captive Derelict 34825 | -6/Extension | Allied Derelicts emerged from ambush trap array 34873 | -6/Extension | Build established: Commander-Mutant 34907 | -6/Extension | Lost 3 allies 34909 | -6/Extension | Spotted B-75 Beast 34926 | -6/Extension | Allies destroyed B-75 Beast 34952 | -6/Extension | Lost 3 allies 34999 | -6/Extension | First assault squad dispatched 35177 | -6/Extension | Build established: Scavenger-Mutant 35326 | -6/Extension | Spotted B-75 Beast 35344 | -6/Extension | Destroyed B-75 Beast 35453 | -6/Extension | Rescued A7 35609 | -6/Extension | Rescued a captive Derelict 35729 | -6/Extension | Incoming assault squad redirected 35885 | -6/Extension | Lost 3 allies 36013 | -6/Extension | Build established: Commander-Mutant 36021 | -6/Extension | Rescued a captive Derelict 36067 | -6/Extension | Incoming assault squad redirected 36125 | -6/Extension | Lost 5 allies 36145 | -6/Extension | Discovered exit to Factory (range 10) 36148 | -6/Extension | Discovered new exit (range 6) 36176 | -6/Extension | Disrupted transfer network 36177 | -6/Extension | Entered Cetus 36177 | -6/Cetus | Accompanied by 3 allies (A7) 36182 | -6/Cetus | Acquired a Cetus Manufacturing Module code from A7 36208 | -6/Cetus | Lost 4 allies 36212 | -6/Cetus | Spotted Cetus Guard 36214 | -6/Cetus | Spotted Cetus Guard 36214 | -6/Cetus | Spotted Cetus Guard 36214 | -6/Cetus | Spotted Cetus Guard 36217 | -6/Cetus | Destroyed Cetus Guard 36222 | -6/Cetus | Allies destroyed Cetus Guard 36230 | -6/Cetus | Destroyed Cetus Guard 36232 | -6/Cetus | Allies destroyed Cetus Guard 36336 | -6/Cetus | Started Cetus Manufacturing Module 36361 | -6/Cetus | Manufactured an Enhanced Grunt 36386 | -6/Cetus | Manufactured an Enhanced Grunt 36393 | -6/Cetus | Discovered new exit (range 16) 36411 | -6/Cetus | Manufactured an Enhanced Grunt 36436 | -6/Cetus | Manufactured an Enhanced Grunt 36461 | -6/Cetus | Manufactured an Enhanced Grunt 36463 | -6/Cetus | Spotted Cetus Guard 36464 | -6/Cetus | Spotted Cetus Guard 36466 | -6/Cetus | Build established: Scavenger-Mutant 36468 | -6/Cetus | Destroyed Cetus Guard 36468 | -6/Cetus | Spotted Cetus Guard 36469 | -6/Cetus | Spotted Cetus Guard 36472 | -6/Cetus | Allies destroyed Cetus Guard 36474 | -6/Cetus | Destroyed Cetus Guard 36483 | -6/Cetus | Allies destroyed Cetus Guard 36496 | -6/Cetus | Discovered exit to Factory (range 15) 36507 | -6/Cetus | Met Revision 17 36514 | -6/Cetus | Murdered A7 36516 | -6/Cetus | Extracted ID and sensor layout for unrecognized location from A7's data core 36635 | -6/Cetus | Entered Archives 36635 | -6/Archives | Accompanied by 3 allies 36726 | -6/Archives | Discovered new exit (range 16) 36756 | -6/Archives | Entered Hub_04(d) 36756 | -6/Hub_04(d) | Accompanied by 3 allies 37243 | -6/Hub_04(d) | Discovered exit to Factory (range 15) 37342 | -6/Hub_04(d) | Network Hub disabled 37358 | -6/Hub_04(d) | System corruption reached 10% 37366 | -6/Hub_04(d) | System corruption reached 30% 37371 | -6/Hub_04(d) | Entered Factory 37371 | -5/Factory | Accompanied by 3 allies 37371 | -5/Factory | Evolved 2 slots: Utility x2 37485 | -5/Factory | Sucked down chute 37485 | -5/Factory | Entered Waste 37486 | -5/Waste | Met a frightened Derelict 37498 | -5/Waste | Spotted C-40 Crusher 37500 | -5/Waste | 3 allies followed down the chute 37502 | -5/Waste | Spotted C-40 Crusher 37509 | -5/Waste | Destroyed C-40 Crusher 37516 | -5/Waste | Spotted C-40 Crusher 37521 | -5/Waste | Destroyed C-40 Crusher 37536 | -5/Waste | Destroyed C-40 Crusher 37542 | -5/Waste | Found Exp. Thermal Shield 37558 | -5/Waste | Lost 3 allies 37567 | -5/Waste | Warlord forces began an assault 37602 | -5/Waste | Spotted C-40 Crusher 37603 | -5/Waste | Allies destroyed C-40 Crusher 37719 | -5/Waste | Spotted C-40 Crusher 37724 | -5/Waste | Destroyed C-40 Crusher 37787 | -5/Waste | Discovered new exit (range 15) 37846 | -5/Waste | Found Broken Heavy Servo Lattice 38149 | -5/Waste | Entered Factory 38149 | -5/Factory | Accompanied by 18 allies 38243 | -5/Factory | Discovered new exit (range 12) 38326 | -5/Factory | Identified exit to Upper Caves 38442 | -5/Factory | Repaired Biometal Heavy Treads 38558 | -5/Factory | Repaired Centrium Medium Armor Plating 38621 | -5/Factory | Repaired Heavy Servo Lattice 38758 | -5/Factory | Lost 3 allies 39046 | -5/Factory | Discovered new exit (range 9) 39649 | -5/Factory | First assault squad dispatched 39674 | -5/Factory | Incoming assault squad redirected 39708 | -5/Factory | Lost 5 allies 39965 | -5/Factory | Incoming assault squad redirected 40165 | -5/Factory | P-70 Sage assimilated allied MO-1LG(b) 40277 | -5/Factory | Incoming assault squad redirected 41061 | -5/Factory | Incoming assault squad redirected 41105 | -5/Factory | Destroyed 7 combat bots 41164 | -5/Factory | Incoming assault squad redirected 41312 | -5/Factory | Fabricated Rocket Array? 41430 | -5/Factory | Garrison activated, responded to threat 41445 | -5/Factory | Destroyed 9 combat bots 41460 | -5/Factory | High security lockdown imminent 41524 | -5/Factory | Destroyed 15 combat bots 41540 | -5/Factory | High security lockdown engaged 41914 | -5/Factory | Destroyed 17 combat bots 42006 | -5/Factory | Destroyed 18 combat bots 42060 | -5/Factory | Sterilization system engaged 42060 | -5/Factory | Non-combat units ordered to evacuate 42069 | -5/Factory | Destroyed 15 combat bots 42074 | -5/Factory | Lost 3 parts (1p2u) 42131 | -5/Factory | Destroyed 9 combat bots 42160 | -5/Factory | Combat units ordered to evacuate 42189 | -5/Factory | Entered Upper Caves 42197 | -5/Upper Caves | Lost 14 parts (1p4n6u3w) 42216 | -5/Upper Caves | Core integrity fell below 50% 42313 | -5/Upper Caves | Identified exit to Upper Caves 42409 | -5/Upper Caves | Build established: Mutant 42424 | -5/Upper Caves | Entered another Upper Caves area 42437 | -5/Upper Caves | Discovered new exit (range 4) 42439 | -5/Upper Caves | Entered Factory 42439 | -4/Factory | Evolved 2 slots: Propulsion x2 42480 | -4/Factory | Identified exit to Upper Caves 42660 | -4/Factory | Repaired Broken Gravity Neutralizer 42935 | -4/Factory | Discovered new exit (range 10) 42939 | -4/Factory | First assault squad dispatched 42960 | -4/Factory | Identified exit to Research 42977 | -4/Factory | Unchained authorized (QV-33N) 43207 | -4/Factory | Incoming assault squad redirected 43235 | -4/Factory | Build established: Scavenger-Mutant 43261 | -4/Factory | High security lockdown imminent 43341 | -4/Factory | High security lockdown engaged 43379 | -4/Factory | Found Launcher Loader 43457 | -4/Factory | Lost 3 parts (1n1u1w) 43589 | -4/Factory | Core integrity fell below 50% 43602 | -4/Factory | Core integrity fell below 20% 43602 | -4/Factory | Discovered exit to Research (range 13) 43612 | -4/Factory | Entered Research 43612 | -3/Research | Evolved 2 slots: Propulsion x1, Utility x1 43613 | -3/Research | Identified exit to Armory 43638 | -3/Research | Lost 17 parts (2p5n6u4w) 43685 | -3/Research | Identified exit to DSF 43719 | -3/Research | Entered DSF 43758 | -3/DSF | Additional patrols routed to DSF 43825 | -3/DSF | Discovered new exit (range 15) 43841 | -3/DSF | Entered Research 43841 | -2/Research | Evolved 2 slots: Propulsion x1, Utility x1 43891 | -2/Research | Discovered new exit (range 8) 43901 | -2/Research | Entered Access 43901 | -1/Access | Evolved 2 slots: Power x1, Utility x1 44118 | -1/Access | Identified exit to Surface 44153 | -1/Access | Spotted B-99 Colossus 44273 | -1/Access | Build established: Wizard-Sprinter 44342 | -1/Access | Targeted by mysterious "MATRIX" hacker. 44360 | -1/Access | Unchained authorized (QV-33N) 44456 | *** | Escaped! Last Messages --------------- 44436_ Knocked back. 44436_ Hacking Suite destroyed. 44436_ Mic. Antimatter Reactor destroyed. 44436_ Knocked back. 44437_ Detecting nearby Garrison Access. 44441_ Mic. Antimatter Reactor severed. 44441_ Lgt. Quantum Reactor severed. 44442_ Backup Plating VII severed. 44442_ Backup Plating VII disintegrated. 44444_ Q-thruster destroyed. 44446_ Cld. Field Propulsion Drive severed. 44447_ Imp. System Shield destroyed. 44448_ ALERT: Potential suspicious activity detected, Programmers report to Access Zone 7X. 44452_ Impulse Thruster Array destroyed. 44453_ System corrupted: Substantial component data lost. 44453_ Connecting with Terminal... >>Open(Door) Sealed Barrier opened. 44454_ The Access Shell folds into the floor. Map ----- +----------------------------------------------------+ | ?????????????????????????????????????????????????? | | ?????????????????????????????????????????????????? | | ?????????????????????????????????????????????????? | | ?????????????????????????????????????????????????? | | ?????????????????????????????????????????????????? | | ?????????????????????????????????????????????????? | | ?????????????????????????????????????????????????? | | ?????????????????????????????????????????????????? | | ?????????????????????????????????????????????????? | | ?????????????????????????????????????????????????? | | ?????????????????????????????????????????????????? | | ?????????????????????????????????????????????????? | | ?????????????????????????????????????????????????? | | ?????????????????????????????????????? ?????????? | | ?????????????????????????????????????? #????????? | | ??????????????????????????????????????w #????????? | | ?????????????????????????????????????? #????????? | | ?????????????????????????????????????? #????????? | | ?????????????????????????????????????? #????????? | | ?????????????????????????????###?????? #????????? | | ????????????????????########## ####### #????????? | | ????????????????????" #????????? | | ??????????????BB????" #????????? | | ######+##?????BB????" #????????? | | ?????????" #????????? | | ?????????" "@ c #????????? | | ?????????" "" c c #????????? | | ?????????" #????????? | | ######+##"??????????" #????????? | | ????????????????????" """ """ #????????? | | ????????????????????" """T""" #????????? | | ????????????????????########## ####### #????????? | | ?????????????????????????????###?????# #????????? | | ??????????????????????################ #????????? | | ??????????????????????# ## #????????? | | ????????????####??????# ## #????????? | | ?????????#### ######?# ## #????????? | | ????###### # ### ## #????????? | | ##### #] ## #????????? | | % / ] " ** ## ##???????? | | ##### ##+########+### ####????? | | ????# / = #? | | ????# # +? | | ????# # #+########## ##### ##? | | ????# # #??????????##+###???????? | | ????######## ### #???????????????????????? | | ???????????## # ##?# #???????????????????????? | | ??????????? ??? #???????????????????????? | | ????????? ???? #???????????????????????? | | ???????? ? ???? #???????????????????????? | +----------------------------------------------------+ Best States ------------- Heat Dissipation 72 Energy Generation 53 Energy Capacity 600 Matter Stores 300 Matter Capacity 300 Sight Range 16 Terrain Scan Range 16 Terrain Scan Density 210 Jamming Range 16 Additional Mass Support 12 Armor Coverage 900 Resistance: KI 30 Resistance: TH 10 Resistance: EX 50 Core Shielding 20 Propulsion Shielding 33 Weapon Shielding 66 Melee Speed Boost 20 Evasion (%) 75 Targeting Accuracy 28 Melee Accuracy 8 Core Analysis 6 Armor Integrity Analysis 30 Recoil Reduction 5 Particle Charging 25 Offensive Hacking 64 Defensive Hacking 12 Relay Coupler Types 2 Relay Coupler Value 34 Authchip Count 1 Trap Extractor Capacity 6 Item Schematics ----------------- Huge Storage Unit | -10/Materials | Hacked Imp. Weapon Shielding | -9/Materials | Scanalyzed Combat Drone Bay | -7/Data Miner | Free Lgt. Regenerative Plating | -7/Data Miner | Free Cld. Cesium-ion Thruster | -7/Data Miner | Free Exp. Utility Shielding | -7/Data Miner | Free Imp. Lightning Gun | -7/Data Miner | Free Linear Gravjet | -7/Data Miner | Free Adv. Salvage Targeting Computer | -7/Data Miner | Free Hyp. Coil Gun | -7/Data Miner | Free Adv. Plasma Cannon | -7/Data Miner | Free Adv. Trap Extractor | -7/Data Miner | Free Imp. Antigrav System | -7/Data Miner | Free Adv. Medium Treads | -7/Data Miner | Free Rocket Array | -6/Factory | Scanalyzed Robot Schematics ------------------ G-47 Trooper | -7/Data Miner | Free X-67 Chaingunner | -7/Data Miner | Free G-50 Soldier | -7/Data Miner | Free L-41 Fighter | -7/Data Miner | Free Fabricated ------------ Weapon Mount | x2 | -6/Factory | Preloaded Adv. Medium Treads | x2 | -6/Factory Rocket Array | x1 | -5/Factory Repaired ---------- Lgt. Treads | 30% | -10/Materials Cld. Ion Engine | 23% | -9/Materials Lgt. Treads | 54% | -9/Materials Lgt. Armor Plating | 27% | -8/Materials Lgt. Treads | 17% | -8/Materials Imp. Light Armor Plating | 53% | -8/Materials Lgt. Treads | 9% | -7/Factory Med. Treads | 1% | -7/Factory Arm. Huge Wheel | 56% | -6/Factory Biometal Heavy Treads | 20% | -5/Factory Centrium Medium Armor Plating | 65% | -5/Factory Heavy Servo Lattice | 50% | -5/Factory Gravity Neutralizer | 17% | -4/Factory | Broken Studied --------- Lgt. Treads | -9/Materials | Hacked Autogun | -9/Materials | Hacked Hvy. Assault Rifle | -9/Materials | Hacked Rocket Launcher | -9/Materials | Hacked Pulse Rifle | -8/Materials | Hacked Minigun | -8/Materials | Hacked Gauss Rifle | -7/Factory | Hacked Med. Treads | -7/Factory | Hacked Missile Launcher | -7/Factory | Hacked Mic. Nuclear Core | -7/Factory | Hacked Hvy. Assault Cannon | -7/Factory | Hacked Hvy. Ion Cannon | -7/Factory | Hacked Arm. Huge Wheel | -6/Factory | Hacked Imp. Medium Treads | -6/Factory | Hacked Magnetic Acceleration Cannon | -6/Factory | Hacked HERF Cannon | -5/Factory | Hacked Alien Tech Used ----------------- None Achievements -------------- None Challenges ------------ None Game ------ Seed InsulatedAngularMaul Manual? 0 Play Time 03:56:20 Cumulative 2209.3 hours Start 2026.03.22 @ 17:37:54 End 2026.03.22 @ 22:09:15 Sessions 5 Manual Loads 0 Difficulty Rogue Special Mode None Game No. 1397 Rogue 1393 Adventurer 4 Explorer 0 Win Type 0 Total 313 Types 234/14/26/11/3/1/5/10/5/4 Lore% 99 Gallery% 96 Achievement% 93 Wizard Run 0 Options --------- Layout 2 ASCII 0 Keyboard 1 Movement Vi Keybinds 0 Fullscreen 0 Font 24/Terminus Map View 59x48 Zoom Use 0% Tactical HUD 1 Map Filters NONE Filters NONE Steam 1 RUN: 75b8c3af-f030-45af-978a-c498e1d99c3d